Workbook

Sheet VNA IPCA Projetado
A1: Data Referência | B1: VNA | C1: IPCA | D1: IPCA a.a
A2: 2000-07-17 | B2: 1000
A3: 2000-07-18 | B3: 1000.760984
A4: 2000-07-19 | B4: 1001.522547
A5: 2000-07-20 | B5: 1002.284689
A6: 2000-07-21 | B6: 1003.047412
A7: 2000-07-24 | B7: 1003.810715
A8: 2000-07-25 | B8: 1004.574599
A9: 2000-07-26 | B9: 1005.339064
A10: 2000-07-27 | B10: 1006.104111
A11: 2000-07-28 | B11: 1006.86974
A12: 2000-07-31 | B12: 1007.635951
A13: 2000-08-01 | B13: 1008.402746
A14: 2000-08-02 | B14: 1009.170124
A15: 2000-08-03 | B15: 1009.938086
A16: 2000-08-04 | B16: 1010.706633
A17: 2000-08-07 | B17: 1011.475764
A18: 2000-08-08 | B18: 1012.245481
A19: 2000-08-09 | B19: 1013.015784
A20: 2000-08-10 | B20: 1013.786672
A21: 2000-08-11 | B21: 1014.558148
A22: 2000-08-14 | B22: 1015.33021
A23: 2000-08-15 | B23: 1016.10286
A24: 2000-08-16 | B24: 1016.704093
A25: 2000-08-17 | B25: 1017.305682
A26: 2000-08-18 | B26: 1017.907627
A27: 2000-08-21 | B27: 1018.509928
A28: 2000-08-22 | B28: 1019.112585
A29: 2000-08-23 | B29: 1019.7156
A30: 2000-08-24 | B30: 1020.31897
A31: 2000-08-25 | B31: 1020.922698
A32: 2000-08-28 | B32: 1021.526783
A33: 2000-08-29 | B33: 1022.131226
A34: 2000-08-30 | B34: 1022.736026
A35: 2000-08-31 | B35: 1023.341184
A36: 2000-09-01 | B36: 1023.9467
A37: 2000-09-04 | B37: 1024.552574
A38: 2000-09-05 | B38: 1025.158807
A39: 2000-09-06 | B39: 1025.765399
A40: 2000-09-08 | B40: 1026.372349
A41: 2000-09-11 | B41: 1026.979659
A42: 2000-09-12 | B42: 1027.587328
A43: 2000-09-13 | B43: 1028.195357
A44: 2000-09-14 | B44: 1028.803745
A45: 2000-09-15 | B45: 1029.412493
A46: 2000-09-18 | B46: 1029.530658
A47: 2000-09-19 | B47: 1029.648837
A48: 2000-09-20 | B48: 1029.767029
A49: 2000-09-21 | B49: 1029.885235
A50: 2000-09-22 | B50: 1030.003455
A51: 2000-09-25 | B51: 1030.121688
A52: 2000-09-26 | B52: 1030.239934
A53: 2000-09-27 | B53: 1030.358194
A54: 2000-09-28 | B54: 1030.476468
A55: 2000-09-29 | B55: 1030.594755
A56: 2000-10-03 | B56: 1030.831371
A57: 2000-10-02 | B57: 1030.713056
A58: 2000-10-04 | B58: 1030.949699
A59: 2000-10-05 | B59: 1031.06804
A60: 2000-10-06 | B60: 1031.186395
A61: 2000-10-09 | B61: 1031.304764
A62: 2000-10-10 | B62: 1031.423147
A63: 2000-10-11 | B63: 1031.541542
A64: 2000-10-13 | B64: 1031.659952
A65: 2000-10-16 | B65: 1031.778375
A66: 2000-10-17 | B66: 1031.847047
A67: 2000-10-18 | B67: 1031.915723
A68: 2000-10-19 | B68: 1031.984404
A69: 2000-10-20 | B69: 1032.053089
A70: 2000-10-23 | B70: 1032.121779
A71: 2000-10-24 | B71: 1032.190473
A72: 2000-10-25 | B72: 1032.259172
A73: 2000-10-26 | B73: 1032.327876
A74: 2000-10-27 | B74: 1032.396584
A75: 2000-10-30 | B75: 1032.465297
A76: 2000-10-31 | B76: 1032.534014
A77: 2000-11-01 | B77: 1032.602736
A78: 2000-11-03 | B78: 1032.671463
A79: 2000-11-06 | B79: 1032.740194
A80: 2000-11-07 | B80: 1032.808929
A81: 2000-11-08 | B81: 1032.877669
A82: 2000-11-09 | B82: 1032.946414
A83: 2000-11-10 | B83: 1033.015164
A84: 2000-11-13 | B84: 1033.083918
A85: 2000-11-14 | B85: 1033.152676
A86: 2000-11-16 | B86: 1033.221439
A87: 2000-11-17 | B87: 1033.378689
A88: 2000-11-20 | B88: 1033.535963
A89: 2000-11-21 | B89: 1033.693261
A90: 2000-11-22 | B90: 1033.850583
A91: 2000-11-23 | B91: 1034.007928
A92: 2000-11-24 | B92: 1034.165298
A93: 2000-11-27 | B93: 1034.322691
A94: 2000-11-28 | B94: 1034.480109
A95: 2000-11-29 | B95: 1034.637551
A96: 2000-11-30 | B96: 1034.795016
A97: 2000-12-01 | B97: 1034.952505
A98: 2000-12-04 | B98: 1035.110019
A99: 2000-12-05 | B99: 1035.267556
A100: 2000-12-06 | B100: 1035.425118
A101: 2000-12-07 | B101: 1035.582703
A102: 2000-12-08 | B102: 1035.740312
A103: 2000-12-11 | B103: 1035.897946
A104: 2000-12-12 | B104: 1036.055603
A105: 2000-12-13 | B105: 1036.213284
A106: 2000-12-14 | B106: 1036.37099
A107: 2000-12-15 | B107: 1036.528719
A108: 2000-12-18 | B108: 1036.849555
A109: 2000-12-19 | B109: 1037.17049
A110: 2000-12-20 | B110: 1037.491524
A111: 2000-12-21 | B111: 1037.812658
A112: 2000-12-22 | B112: 1038.133892
A113: 2000-12-26 | B113: 1038.455224
A114: 2000-12-27 | B114: 1038.776657
A115: 2000-12-28 | B115: 1039.098188
A116: 2000-12-29 | B116: 1039.41982
A117: 2001-01-02 | B117: 1039.74155
A118: 2001-01-03 | B118: 1040.063381
A119: 2001-01-04 | B119: 1040.385311
A120: 2001-01-05 | B120: 1040.70734
A121: 2001-01-08 | B121: 1041.02947
A122: 2001-01-09 | B122: 1041.351699
A123: 2001-01-10 | B123: 1041.674027
A124: 2001-01-11 | B124: 1041.996456
A125: 2001-01-12 | B125: 1042.318984
A126: 2001-01-15 | B126: 1042.641612
A127: 2001-01-16 | B127: 1042.899417
A128: 2001-01-17 | B128: 1043.157286
A129: 2001-01-18 | B129: 1043.415219
A130: 2001-01-19 | B130: 1043.673215
A131: 2001-01-22 | B131: 1043.931275
A132: 2001-01-23 | B132: 1044.189399
A133: 2001-01-24 | B133: 1044.447587
A134: 2001-01-25 | B134: 1044.705838
A135: 2001-01-26 | B135: 1044.964154
A136: 2001-01-29 | B136: 1045.222533
A137: 2001-01-30 | B137: 1045.480976
A138: 2001-01-31 | B138: 1045.739483
A139: 2001-02-01 | B139: 1045.998054
A140: 2001-02-02 | B140: 1046.256689
A141: 2001-02-05 | B141: 1046.515388
A142: 2001-02-06 | B142: 1046.774151
A143: 2001-02-07 | B143: 1047.032978
A144: 2001-02-08 | B144: 1047.291869
A145: 2001-02-09 | B145: 1047.550824
A146: 2001-02-12 | B146: 1047.809843
A147: 2001-02-13 | B147: 1048.068926
A148: 2001-02-14 | B148: 1048.328073
A149: 2001-02-15 | B149: 1048.587284
A150: 2001-02-16 | B150: 1048.85474
A151: 2001-02-19 | B151: 1049.122264
A152: 2001-02-20 | B152: 1049.389857
A153: 2001-02-21 | B153: 1049.657518
A154: 2001-02-22 | B154: 1049.925247
A155: 2001-02-23 | B155: 1050.193045
A156: 2001-02-28 | B156: 1050.460911
A157: 2001-03-01 | B157: 1050.728845
A158: 2001-03-02 | B158: 1050.996848
A159: 2001-03-05 | B159: 1051.264918
A160: 2001-03-06 | B160: 1051.533058
A161: 2001-03-07 | B161: 1051.801265
A162: 2001-03-08 | B162: 1052.069541
A163: 2001-03-09 | B163: 1052.337886
A164: 2001-03-12 | B164: 1052.606299
A165: 2001-03-13 | B165: 1052.87478
A166: 2001-03-14 | B166: 1053.14333
A167: 2001-03-15 | B167: 1053.411948
A168: 2001-03-16 | B168: 1053.602126
A169: 2001-03-19 | B169: 1053.792337
A170: 2001-03-20 | B170: 1053.982583
A171: 2001-03-21 | B171: 1054.172864
A172: 2001-03-22 | B172: 1054.363178
A173: 2001-03-23 | B173: 1054.553527
A174: 2001-03-26 | B174: 1054.743911
A175: 2001-03-27 | B175: 1054.934328
A176: 2001-03-28 | B176: 1055.12478
A177: 2001-03-29 | B177: 1055.315267
A178: 2001-03-30 | B178: 1055.505788
A179: 2001-04-02 | B179: 1055.696343
A180: 2001-04-03 | B180: 1055.886933
A181: 2001-04-04 | B181: 1056.077557
A182: 2001-04-05 | B182: 1056.268216
A183: 2001-04-06 | B183: 1056.458908
A184: 2001-04-09 | B184: 1056.649636
A185: 2001-04-10 | B185: 1056.840398
A186: 2001-04-11 | B186: 1057.031194
A187: 2001-04-12 | B187: 1057.222025
A188: 2001-04-16 | B188: 1057.41289
A189: 2001-04-17 | B189: 1057.718622
A190: 2001-04-18 | B190: 1058.024443
A191: 2001-04-19 | B191: 1058.330352
A192: 2001-04-20 | B192: 1058.63635
A193: 2001-04-23 | B193: 1058.942436
A194: 2001-04-24 | B194: 1059.248611
A195: 2001-04-25 | B195: 1059.554874
A196: 2001-04-26 | B196: 1059.861226
A197: 2001-04-27 | B197: 1060.167666
A198: 2001-04-30 | B198: 1060.474195
A199: 2001-05-02 | B199: 1060.780813
A200: 2001-05-03 | B200: 1061.087519
... 8241 more rows

Sheet DI Futuro Projetado
A1: DU | B1: Data | C1: CDI Atual | D1: Alteração | E1: CDI 2 | F1: Cenário 1 | G1: Taxa Ano
A2: 0 | B2: 2023-08-21 | C2: 13.15 | D2: 0 | E2: 13.15 | F2: 10000 | G2: 13.15
A3: 1 | B3: 2023-08-22 | C3: 13.15 | D3: 0 | E3: 13.15 | F3: 10004.9 | G3: 13.13931588
A4: 2 | B4: 2023-08-23 | C4: 13.15 | D4: 0 | E4: 13.15 | F4: 10009.81 | G4: 13.15013858
A5: 3 | B5: 2023-08-24 | C5: 13.15 | D5: 0 | E5: 13.15 | F5: 10014.72 | G5: 13.15145944
A6: 4 | B6: 2023-08-25 | C6: 13.15 | D6: 0 | E6: 13.15 | F6: 10019.63 | G6: 13.15040637
A7: 5 | B7: 2023-08-28 | C7: 13.15 | D7: 0 | E7: 13.15 | F7: 10024.54 | G7: 13.14840509
A8: 6 | B8: 2023-08-29 | C8: 13.15 | D8: 0 | E8: 13.15 | F8: 10029.46 | G8: 13.15066915
A9: 7 | B9: 2023-08-30 | C9: 13.15 | D9: 0 | E9: 13.15 | F9: 10034.38 | G9: 13.15130611
A10: 8 | B10: 2023-08-31 | C10: 13.15 | D10: 0 | E10: 13.15 | F10: 10039.3 | G10: 13.15092695
A11: 9 | B11: 2023-09-01 | C11: 13.15 | D11: 0 | E11: 13.15 | F11: 10044.22 | G11: 13.14987113
A12: 10 | B12: 2023-09-04 | C12: 13.15 | D12: 0 | E12: 13.15 | F12: 10049.15 | G12: 13.15117977
A13: 11 | B13: 2023-09-05 | C13: 13.15 | D13: 0 | E13: 13.15 | F13: 10054.08 | G13: 13.1516266
A14: 12 | B14: 2023-09-06 | C14: 13.15 | D14: 0 | E14: 13.15 | F14: 10059.01 | G14: 13.15142763
A15: 13 | B15: 2023-09-08 | C15: 13.15 | D15: 0 | E15: 13.15 | F15: 10063.94 | G15: 13.1507324
A16: 14 | B16: 2023-09-11 | C16: 13.15 | D16: 0 | E16: 13.15 | F16: 10068.88 | G16: 13.15167053
A17: 15 | B17: 2023-09-12 | C17: 13.15 | D17: 0 | E17: 13.15 | F17: 10073.82 | G17: 13.152026
A18: 16 | B18: 2023-09-13 | C18: 13.15 | D18: 0 | E18: 13.15 | F18: 10078.76 | G18: 13.15190848
A19: 17 | B19: 2023-09-14 | C19: 13.15 | D19: 0 | E19: 13.15 | F19: 10083.7 | G19: 13.15140184
A20: 18 | B20: 2023-09-15 | C20: 13.15 | D20: 0 | E20: 13.15 | F20: 10088.64 | G20: 13.1505713
A21: 19 | B21: 2023-09-18 | C21: 13.15 | D21: 0 | E21: 13.15 | F21: 10093.59 | G21: 13.15095519
A22: 20 | B22: 2023-09-19 | C22: 13.15 | D22: 0 | E22: 13.15 | F22: 10098.54 | G22: 13.1509578
A23: 21 | B23: 2023-09-20 | C23: 13.15 | D23: 0 | E23: 13.15 | F23: 10103.49 | G23: 13.15063393
A24: 22 | B24: 2023-09-21 | C24: 13.15 | D24: -0.25 | E24: 12.9 | F24: 10108.44 | G24: 13.1500284
A25: 23 | B25: 2023-09-22 | C25: 13.15 | D25: 0 | E25: 12.9 | F25: 10113.31 | G25: 13.13937206
A26: 24 | B26: 2023-09-25 | C26: 13.15 | D26: 0 | E26: 12.9 | F26: 10118.18 | G26: 13.12932919
A27: 25 | B27: 2023-09-26 | C27: 13.15 | D27: 0 | E27: 12.9 | F27: 10123.05 | G27: 13.11982638
A28: 26 | B28: 2023-09-27 | C28: 13.15 | D28: 0 | E28: 12.9 | F28: 10127.93 | G28: 13.11188399
A29: 27 | B29: 2023-09-28 | C29: 13.15 | D29: 0 | E29: 12.9 | F29: 10132.81 | G29: 13.10428535
A30: 28 | B30: 2023-09-29 | C30: 13.15 | D30: 0 | E30: 12.9 | F30: 10137.69 | G30: 13.09699384
A31: 29 | B31: 2023-10-02 | C31: 13.15 | D31: 0 | E31: 12.9 | F31: 10142.57 | G31: 13.08997789
A32: 30 | B32: 2023-10-03 | C32: 13.15 | D32: 0 | E32: 12.9 | F32: 10147.45 | G32: 13.08321018
A33: 31 | B33: 2023-10-04 | C33: 13.15 | D33: 0 | E33: 12.9 | F33: 10152.34 | G33: 13.07757228
A34: 32 | B34: 2023-10-05 | C34: 13.15 | D34: 0 | E34: 12.9 | F34: 10157.23 | G34: 13.07208043
A35: 33 | B35: 2023-10-06 | C35: 13.15 | D35: 0 | E35: 12.9 | F35: 10162.12 | G35: 13.06672153
A36: 34 | B36: 2023-10-09 | C36: 13.15 | D36: 0 | E36: 12.9 | F36: 10167.01 | G36: 13.06148407
A37: 35 | B37: 2023-10-10 | C37: 13.15 | D37: 0 | E37: 12.9 | F37: 10171.91 | G37: 13.05715805
A38: 36 | B38: 2023-10-11 | C38: 13.15 | D38: 0 | E38: 12.9 | F38: 10176.81 | G38: 13.05288888
A39: 37 | B39: 2023-10-13 | C39: 13.15 | D39: 0 | E39: 12.9 | F39: 10181.71 | G39: 13.04867213
A40: 38 | B40: 2023-10-16 | C40: 13.15 | D40: 0 | E40: 12.9 | F40: 10186.61 | G40: 13.04450383
A41: 39 | B41: 2023-10-17 | C41: 13.15 | D41: 0 | E41: 12.9 | F41: 10191.52 | G41: 13.04109712
A42: 40 | B42: 2023-10-18 | C42: 13.15 | D42: 0 | E42: 12.9 | F42: 10196.43 | G42: 13.03769555
A43: 41 | B43: 2023-10-19 | C43: 13.15 | D43: 0 | E43: 12.9 | F43: 10201.34 | G43: 13.0342989
A44: 42 | B44: 2023-10-20 | C44: 13.15 | D44: 0 | E44: 12.9 | F44: 10206.25 | G44: 13.03090698
A45: 43 | B45: 2023-10-23 | C45: 13.15 | D45: 0 | E45: 12.9 | F45: 10211.17 | G45: 13.02816832
A46: 44 | B46: 2023-10-24 | C46: 13.15 | D46: 0 | E46: 12.9 | F46: 10216.09 | G46: 13.02540393
A47: 45 | B47: 2023-10-25 | C47: 13.15 | D47: 0 | E47: 12.9 | F47: 10221.01 | G47: 13.02261566
A48: 46 | B48: 2023-10-26 | C48: 13.15 | D48: 0 | E48: 12.9 | F48: 10225.93 | G48: 13.01980522
A49: 47 | B49: 2023-10-27 | C49: 13.15 | D49: 0 | E49: 12.9 | F49: 10230.85 | G49: 13.01697417
A50: 48 | B50: 2023-10-30 | C50: 13.15 | D50: 0 | E50: 12.9 | F50: 10235.78 | G50: 13.0147036
A51: 49 | B51: 2023-10-31 | C51: 13.15 | D51: 0 | E51: 12.9 | F51: 10240.71 | G51: 13.01239091
A52: 50 | B52: 2023-11-01 | C52: 13.15 | D52: 0 | E52: 12.9 | F52: 10245.64 | G52: 13.01003877
A53: 51 | B53: 2023-11-03 | C53: 13.15 | D53: -0.25 | E53: 12.65 | F53: 10250.57 | G53: 13.00764963
A54: 52 | B54: 2023-11-06 | C54: 13.15 | D54: 0 | E54: 12.65 | F54: 10255.42 | G54: 13.00095385
A55: 53 | B55: 2023-11-07 | C55: 13.15 | D55: 0 | E55: 12.65 | F55: 10260.27 | G55: 12.99439094
A56: 54 | B56: 2023-11-08 | C56: 13.15 | D56: 0 | E56: 12.65 | F56: 10265.12 | G56: 12.98795365
A57: 55 | B57: 2023-11-09 | C57: 13.15 | D57: 0 | E57: 12.65 | F57: 10269.97 | G57: 12.98163524
A58: 56 | B58: 2023-11-10 | C58: 13.15 | D58: 0 | E58: 12.65 | F58: 10274.83 | G58: 12.97592423
A59: 57 | B59: 2023-11-13 | C59: 13.15 | D59: 0 | E59: 12.65 | F59: 10279.69 | G59: 12.97030213
A60: 58 | B60: 2023-11-14 | C60: 13.15 | D60: 0 | E60: 12.65 | F60: 10284.55 | G60: 12.96476446
A61: 59 | B61: 2023-11-16 | C61: 13.15 | D61: 0 | E61: 12.65 | F61: 10289.41 | G61: 12.95930703
A62: 60 | B62: 2023-11-17 | C62: 13.15 | D62: 0 | E62: 12.65 | F62: 10294.27 | G62: 12.95392593
A63: 61 | B63: 2023-11-20 | C63: 13.15 | D63: 0 | E63: 12.65 | F63: 10299.14 | G63: 12.94907055
A64: 62 | B64: 2023-11-21 | C64: 13.15 | D64: 0 | E64: 12.65 | F64: 10304.01 | G64: 12.94426935
A65: 63 | B65: 2023-11-22 | C65: 13.15 | D65: 0 | E65: 12.65 | F65: 10308.88 | G65: 12.93951986
A66: 64 | B66: 2023-11-23 | C66: 13.15 | D66: 0 | E66: 12.65 | F66: 10313.75 | G66: 12.93481974
A67: 65 | B67: 2023-11-24 | C67: 13.15 | D67: 0 | E67: 12.65 | F67: 10318.63 | G67: 12.93059111
A68: 66 | B68: 2023-11-27 | C68: 13.15 | D68: 0 | E68: 12.65 | F68: 10323.51 | G68: 12.92639433
A69: 67 | B69: 2023-11-28 | C69: 13.15 | D69: 0 | E69: 12.65 | F69: 10328.39 | G69: 12.92222807
A70: 68 | B70: 2023-11-29 | C70: 13.15 | D70: 0 | E70: 12.65 | F70: 10333.27 | G70: 12.91809108
A71: 69 | B71: 2023-11-30 | C71: 13.15 | D71: 0 | E71: 12.65 | F71: 10338.16 | G71: 12.91438107
A72: 70 | B72: 2023-12-01 | C72: 13.15 | D72: 0 | E72: 12.65 | F72: 10343.05 | G72: 12.91068623
A73: 71 | B73: 2023-12-04 | C73: 13.15 | D73: 0 | E73: 12.65 | F73: 10347.94 | G73: 12.90700602
A74: 72 | B74: 2023-12-05 | C74: 13.15 | D74: 0 | E74: 12.65 | F74: 10352.83 | G74: 12.9033399
A75: 73 | B75: 2023-12-06 | C75: 13.15 | D75: 0 | E75: 12.65 | F75: 10357.72 | G75: 12.89968739
A76: 74 | B76: 2023-12-07 | C76: 13.15 | D76: 0 | E76: 12.65 | F76: 10362.62 | G76: 12.89641902
A77: 75 | B77: 2023-12-08 | C77: 13.15 | D77: 0 | E77: 12.65 | F77: 10367.52 | G77: 12.89315308
A78: 76 | B78: 2023-12-11 | C78: 13.15 | D78: 0 | E78: 12.65 | F78: 10372.42 | G78: 12.88988957
A79: 77 | B79: 2023-12-12 | C79: 13.15 | D79: 0 | E79: 12.65 | F79: 10377.32 | G79: 12.88662847
A80: 78 | B80: 2023-12-13 | C80: 13.15 | D80: 0 | E80: 12.65 | F80: 10382.23 | G80: 12.88372103
A81: 79 | B81: 2023-12-14 | C81: 13.15 | D81: -0.5 | E81: 12.15 | F81: 10387.14 | G81: 12.88080674
A82: 80 | B82: 2023-12-15 | C82: 13.15 | D82: 0 | E82: 12.15 | F82: 10391.87 | G82: 12.87172732
A83: 81 | B83: 2023-12-18 | C83: 13.15 | D83: 0 | E83: 12.15 | F83: 10396.6 | G83: 12.86280005
A84: 82 | B84: 2023-12-19 | C84: 13.15 | D84: 0 | E84: 12.15 | F84: 10401.33 | G84: 12.8540194
A85: 83 | B85: 2023-12-20 | C85: 13.15 | D85: 0 | E85: 12.15 | F85: 10406.06 | G85: 12.84538015
A86: 84 | B86: 2023-12-21 | C86: 13.15 | D86: 0 | E86: 12.15 | F86: 10410.8 | G86: 12.83720244
A87: 85 | B87: 2023-12-22 | C87: 13.15 | D87: 0 | E87: 12.15 | F87: 10415.54 | G87: 12.82914838
A88: 86 | B88: 2023-12-26 | C88: 13.15 | D88: 0 | E88: 12.15 | F88: 10420.28 | G88: 12.82121372
A89: 87 | B89: 2023-12-27 | C89: 13.15 | D89: 0 | E89: 12.15 | F89: 10425.02 | G89: 12.81339438
A90: 88 | B90: 2023-12-28 | C90: 13.15 | D90: 0 | E90: 12.15 | F90: 10429.76 | G90: 12.8056865
A91: 89 | B91: 2023-12-29 | C91: 13.15 | D91: 0 | E91: 12.15 | F91: 10434.51 | G91: 12.79839245
A92: 90 | B92: 2024-01-02 | C92: 13.15 | D92: 0 | E92: 12.15 | F92: 10439.26 | G92: 12.79119551
A93: 91 | B93: 2024-01-03 | C93: 13.15 | D93: 0 | E93: 12.15 | F93: 10444.01 | G93: 12.78409252
A94: 92 | B94: 2024-01-04 | C94: 13.15 | D94: 0 | E94: 12.15 | F94: 10448.76 | G94: 12.77708048
A95: 93 | B95: 2024-01-05 | C95: 13.15 | D95: 0 | E95: 12.15 | F95: 10453.52 | G95: 12.77044882
A96: 94 | B96: 2024-01-08 | C96: 13.15 | D96: 0 | E96: 12.15 | F96: 10458.28 | G96: 12.76389596
A97: 95 | B97: 2024-01-09 | C97: 13.15 | D97: 0 | E97: 12.15 | F97: 10463.04 | G97: 12.75741947
A98: 96 | B98: 2024-01-10 | C98: 13.15 | D98: 0 | E98: 12.15 | F98: 10467.8 | G98: 12.751017
A99: 97 | B99: 2024-01-11 | C99: 13.15 | D99: 0 | E99: 12.15 | F99: 10472.56 | G99: 12.74468633
A100: 98 | B100: 2024-01-12 | C100: 13.15 | D100: 0 | E100: 12.15 | F100: 10477.33 | G100: 12.73870201
A101: 99 | B101: 2024-01-15 | C101: 13.15 | D101: 0 | E101: 12.15 | F101: 10482.1 | G101: 12.73277941
A102: 100 | B102: 2024-01-16 | C102: 13.15 | D102: 0 | E102: 12.15 | F102: 10486.87 | G102: 12.72691674
A103: 101 | B103: 2024-01-17 | C103: 13.15 | D103: 0 | E103: 12.15 | F103: 10491.64 | G103: 12.72111226
A104: 102 | B104: 2024-01-18 | C104: 13.15 | D104: 0 | E104: 12.15 | F104: 10496.42 | G104: 12.71562964
A105: 103 | B105: 2024-01-19 | C105: 13.15 | D105: 0 | E105: 12.15 | F105: 10501.2 | G105: 12.71019654
A106: 104 | B106: 2024-01-22 | C106: 13.15 | D106: 0 | E106: 12.15 | F106: 10505.98 | G106: 12.7048116
A107: 105 | B107: 2024-01-23 | C107: 13.15 | D107: 0 | E107: 12.15 | F107: 10510.76 | G107: 12.69947349
A108: 106 | B108: 2024-01-24 | C108: 13.15 | D108: 0 | E108: 12.15 | F108: 10515.54 | G108: 12.69418093
A109: 107 | B109: 2024-01-25 | C109: 13.15 | D109: 0 | E109: 12.15 | F109: 10520.33 | G109: 12.68918498
A110: 108 | B110: 2024-01-26 | C110: 13.15 | D110: 0 | E110: 12.15 | F110: 10525.12 | G110: 12.68422725
A111: 109 | B111: 2024-01-29 | C111: 13.15 | D111: 0 | E111: 12.15 | F111: 10529.91 | G111: 12.67930674
A112: 110 | B112: 2024-01-30 | C112: 13.15 | D112: 0 | E112: 12.15 | F112: 10534.7 | G112: 12.6744225
A113: 111 | B113: 2024-01-31 | C113: 13.15 | D113: 0 | E113: 12.15 | F113: 10539.49 | G113: 12.66957358
A114: 112 | B114: 2024-02-01 | C114: 13.15 | D114: -0.5 | E114: 11.65 | F114: 10544.29 | G114: 12.6649995
A115: 113 | B115: 2024-02-02 | C115: 13.15 | D115: 0 | E115: 11.65 | F115: 10548.9 | G115: 12.65592941
A116: 114 | B116: 2024-02-05 | C116: 13.15 | D116: 0 | E116: 11.65 | F116: 10553.51 | G116: 12.64697159
A117: 115 | B117: 2024-02-06 | C117: 13.15 | D117: 0 | E117: 11.65 | F117: 10558.13 | G117: 12.63835694
A118: 116 | B118: 2024-02-07 | C118: 13.15 | D118: 0 | E118: 11.65 | F118: 10562.75 | G118: 12.62984461
A119: 117 | B119: 2024-02-08 | C119: 13.15 | D119: 0 | E119: 11.65 | F119: 10567.37 | G119: 12.621432
A120: 118 | B120: 2024-02-09 | C120: 13.15 | D120: 0 | E120: 11.65 | F120: 10571.99 | G120: 12.61311663
A121: 119 | B121: 2024-02-14 | C121: 13.15 | D121: 0 | E121: 11.65 | F121: 10576.61 | G121: 12.60489608
A122: 120 | B122: 2024-02-15 | C122: 13.15 | D122: 0 | E122: 11.65 | F122: 10581.24 | G122: 12.59699146
A123: 121 | B123: 2024-02-16 | C123: 13.15 | D123: 0 | E123: 11.65 | F123: 10585.87 | G123: 12.58917315
A124: 122 | B124: 2024-02-19 | C124: 13.15 | D124: 0 | E124: 11.65 | F124: 10590.5 | G124: 12.58143905
A125: 123 | B125: 2024-02-20 | C125: 13.15 | D125: 0 | E125: 11.65 | F125: 10595.13 | G125: 12.57378714
A126: 124 | B126: 2024-02-21 | C126: 13.15 | D126: 0 | E126: 11.65 | F126: 10599.76 | G126: 12.56621548
A127: 125 | B127: 2024-02-22 | C127: 13.15 | D127: 0 | E127: 11.65 | F127: 10604.4 | G127: 12.55893615
A128: 126 | B128: 2024-02-23 | C128: 13.15 | D128: 0 | E128: 11.65 | F128: 10609.04 | G128: 12.55172972
A129: 127 | B129: 2024-02-26 | C129: 13.15 | D129: 0 | E129: 11.65 | F129: 10613.68 | G129: 12.54459452
A130: 128 | B130: 2024-02-27 | C130: 13.15 | D130: 0 | E130: 11.65 | F130: 10618.32 | G130: 12.5375289
A131: 129 | B131: 2024-02-28 | C131: 13.15 | D131: 0 | E131: 11.65 | F131: 10622.96 | G131: 12.53053128
A132: 130 | B132: 2024-02-29 | C132: 13.15 | D132: 0 | E132: 11.65 | F132: 10627.61 | G132: 12.52380537
A133: 131 | B133: 2024-03-01 | C133: 13.15 | D133: 0 | E133: 11.65 | F133: 10632.26 | G133: 12.5171411
A134: 132 | B134: 2024-03-04 | C134: 13.15 | D134: 0 | E134: 11.65 | F134: 10636.91 | G134: 12.51053711
A135: 133 | B135: 2024-03-05 | C135: 13.15 | D135: 0 | E135: 11.65 | F135: 10641.56 | G135: 12.50399207
A136: 134 | B136: 2024-03-06 | C136: 13.15 | D136: 0 | E136: 11.65 | F136: 10646.21 | G136: 12.49750469
A137: 135 | B137: 2024-03-07 | C137: 13.15 | D137: 0 | E137: 11.65 | F137: 10650.87 | G137: 12.49127088
A138: 136 | B138: 2024-03-08 | C138: 13.15 | D138: 0 | E138: 11.65 | F138: 10655.53 | G138: 12.48508918
A139: 137 | B139: 2024-03-11 | C139: 13.15 | D139: 0 | E139: 11.65 | F139: 10660.19 | G139: 12.47895849
A140: 138 | B140: 2024-03-12 | C140: 13.15 | D140: 0 | E140: 11.65 | F140: 10664.85 | G140: 12.47287773
A141: 139 | B141: 2024-03-13 | C141: 13.15 | D141: 0 | E141: 11.65 | F141: 10669.51 | G141: 12.46684585
A142: 140 | B142: 2024-03-14 | C142: 13.15 | D142: 0 | E142: 11.65 | F142: 10674.18 | G142: 12.46105149
A143: 141 | B143: 2024-03-15 | C143: 13.15 | D143: 0 | E143: 11.65 | F143: 10678.85 | G143: 12.45530114
A144: 142 | B144: 2024-03-18 | C144: 13.15 | D144: 0 | E144: 11.65 | F144: 10683.52 | G144: 12.4495939
A145: 143 | B145: 2024-03-19 | C145: 13.15 | D145: 0 | E145: 11.65 | F145: 10688.19 | G145: 12.44392891
A146: 144 | B146: 2024-03-20 | C146: 13.15 | D146: 0 | E146: 11.65 | F146: 10692.86 | G146: 12.43830531
A147: 145 | B147: 2024-03-21 | C147: 13.15 | D147: 0 | E147: 11.65 | F147: 10697.54 | G147: 12.43290495
A148: 146 | B148: 2024-03-22 | C148: 13.15 | D148: -0.5 | E148: 11.15 | F148: 10702.22 | G148: 12.42754167
A149: 147 | B149: 2024-03-25 | C149: 13.15 | D149: 0 | E149: 11.15 | F149: 10706.71 | G149: 12.41879479
A150: 148 | B150: 2024-03-26 | C150: 13.15 | D150: 0 | E150: 11.15 | F150: 10711.2 | G150: 12.41013312
A151: 149 | B151: 2024-03-27 | C151: 13.15 | D151: 0 | E151: 11.15 | F151: 10715.69 | G151: 12.40155496
A152: 150 | B152: 2024-03-28 | C152: 13.15 | D152: 0 | E152: 11.15 | F152: 10720.19 | G152: 12.39323481
A153: 151 | B153: 2024-04-01 | C153: 13.15 | D153: 0 | E153: 11.15 | F153: 10724.69 | G153: 12.3849924
A154: 152 | B154: 2024-04-02 | C154: 13.15 | D154: 0 | E154: 11.15 | F154: 10729.19 | G154: 12.37682625
A155: 153 | B155: 2024-04-03 | C155: 13.15 | D155: 0 | E155: 11.15 | F155: 10733.69 | G155: 12.36873486
A156: 154 | B156: 2024-04-04 | C156: 13.15 | D156: 0 | E156: 11.15 | F156: 10738.19 | G156: 12.36071681
A157: 155 | B157: 2024-04-05 | C157: 13.15 | D157: 0 | E157: 11.15 | F157: 10742.7 | G157: 12.35294074
A158: 156 | B158: 2024-04-08 | C158: 13.15 | D158: 0 | E158: 11.15 | F158: 10747.21 | G158: 12.34523291
A159: 157 | B159: 2024-04-09 | C159: 13.15 | D159: 0 | E159: 11.15 | F159: 10751.72 | G159: 12.33759203
A160: 158 | B160: 2024-04-10 | C160: 13.15 | D160: 0 | E160: 11.15 | F160: 10756.23 | G160: 12.33001685
A161: 159 | B161: 2024-04-11 | C161: 13.15 | D161: 0 | E161: 11.15 | F161: 10760.74 | G161: 12.32250617
A162: 160 | B162: 2024-04-12 | C162: 13.15 | D162: 0 | E162: 11.15 | F162: 10765.25 | G162: 12.31505878
A163: 161 | B163: 2024-04-15 | C163: 13.15 | D163: 0 | E163: 11.15 | F163: 10769.77 | G163: 12.30783677
A164: 162 | B164: 2024-04-16 | C164: 13.15 | D164: 0 | E164: 11.15 | F164: 10774.29 | G164: 12.3006736
A165: 163 | B165: 2024-04-17 | C165: 13.15 | D165: 0 | E165: 11.15 | F165: 10778.81 | G165: 12.29356822
A166: 164 | B166: 2024-04-18 | C166: 13.15 | D166: 0 | E166: 11.15 | F166: 10783.33 | G166: 12.28651959
A167: 165 | B167: 2024-04-19 | C167: 13.15 | D167: 0 | E167: 11.15 | F167: 10787.85 | G167: 12.2795267
A168: 166 | B168: 2024-04-22 | C168: 13.15 | D168: 0 | E168: 11.15 | F168: 10792.38 | G168: 12.2727465
A169: 167 | B169: 2024-04-23 | C169: 13.15 | D169: 0 | E169: 11.15 | F169: 10796.91 | G169: 12.26601805
A170: 168 | B170: 2024-04-24 | C170: 13.15 | D170: 0 | E170: 11.15 | F170: 10801.44 | G170: 12.25934046
A171: 169 | B171: 2024-04-25 | C171: 13.15 | D171: 0 | E171: 11.15 | F171: 10805.97 | G171: 12.25271284
A172: 170 | B172: 2024-04-26 | C172: 13.15 | D172: 0 | E172: 11.15 | F172: 10810.5 | G172: 12.24613433
A173: 171 | B173: 2024-04-29 | C173: 13.15 | D173: 0 | E173: 11.15 | F173: 10815.04 | G173: 12.23975705
A174: 172 | B174: 2024-04-30 | C174: 13.15 | D174: 0 | E174: 11.15 | F174: 10819.58 | G174: 12.23342529
A175: 173 | B175: 2024-05-02 | C175: 13.15 | D175: 0 | E175: 11.15 | F175: 10824.12 | G175: 12.22713831
A176: 174 | B176: 2024-05-03 | C176: 13.15 | D176: 0 | E176: 11.15 | F176: 10828.66 | G176: 12.22089534
A177: 175 | B177: 2024-05-06 | C177: 13.15 | D177: 0 | E177: 11.15 | F177: 10833.2 | G177: 12.21469566
A178: 176 | B178: 2024-05-07 | C178: 13.15 | D178: 0 | E178: 11.15 | F178: 10837.75 | G178: 12.20868679
A179: 177 | B179: 2024-05-08 | C179: 13.15 | D179: 0 | E179: 11.15 | F179: 10842.3 | G179: 12.20271798
A180: 178 | B180: 2024-05-09 | C180: 13.15 | D180: -0.5 | E180: 10.65 | F180: 10846.85 | G180: 12.19678857
A181: 179 | B181: 2024-05-10 | C181: 13.15 | D181: 0 | E181: 10.65 | F181: 10851.21 | G181: 12.18813244
A182: 180 | B182: 2024-05-13 | C182: 13.15 | D182: 0 | E182: 10.65 | F182: 10855.57 | G182: 12.1795478
A183: 181 | B183: 2024-05-14 | C183: 13.15 | D183: 0 | E183: 10.65 | F183: 10859.93 | G183: 12.17103346
A184: 182 | B184: 2024-05-15 | C184: 13.15 | D184: 0 | E184: 10.65 | F184: 10864.29 | G184: 12.1625883
A185: 183 | B185: 2024-05-16 | C185: 13.15 | D185: 0 | E185: 10.65 | F185: 10868.65 | G185: 12.15421118
A186: 184 | B186: 2024-05-17 | C186: 13.15 | D186: 0 | E186: 10.65 | F186: 10873.02 | G186: 12.14604228
A187: 185 | B187: 2024-05-20 | C187: 13.15 | D187: 0 | E187: 10.65 | F187: 10877.39 | G187: 12.1379376
A188: 186 | B188: 2024-05-21 | C188: 13.15 | D188: 0 | E188: 10.65 | F188: 10881.76 | G188: 12.12989612
A189: 187 | B189: 2024-05-22 | C189: 13.15 | D189: 0 | E189: 10.65 | F189: 10886.13 | G189: 12.12191685
A190: 188 | B190: 2024-05-23 | C190: 13.15 | D190: 0 | E190: 10.65 | F190: 10890.5 | G190: 12.11399881
A191: 189 | B191: 2024-05-24 | C191: 13.15 | D191: 0 | E191: 10.65 | F191: 10894.87 | G191: 12.10614103
A192: 190 | B192: 2024-05-27 | C192: 13.15 | D192: 0 | E192: 10.65 | F192: 10899.25 | G192: 12.09847901
A193: 191 | B193: 2024-05-28 | C193: 13.15 | D193: 0 | E193: 10.65 | F193: 10903.63 | G193: 12.09087384
A194: 192 | B194: 2024-05-29 | C194: 13.15 | D194: 0 | E194: 10.65 | F194: 10908.01 | G194: 12.08332467
A195: 193 | B195: 2024-05-31 | C195: 13.15 | D195: 0 | E195: 10.65 | F195: 10912.39 | G195: 12.07583063
A196: 194 | B196: 2024-06-03 | C196: 13.15 | D196: 0 | E196: 10.65 | F196: 10916.77 | G196: 12.0683909
A197: 195 | B197: 2024-06-04 | C197: 13.15 | D197: 0 | E197: 10.65 | F197: 10921.15 | G197: 12.06100464
A198: 196 | B198: 2024-06-05 | C198: 13.15 | D198: 0 | E198: 10.65 | F198: 10925.54 | G198: 12.05380292
A199: 197 | B199: 2024-06-06 | C199: 13.15 | D199: 0 | E199: 10.65 | F199: 10929.93 | G199: 12.04665163
A200: 198 | B200: 2024-06-07 | C200: 13.15 | D200: 0 | E200: 10.65 | F200: 10934.32 | G200: 12.03955002
... 2556 more rows

Sheet Tesouro IPCA+ Projetado
A4: Data base | B4: 2023-08-21 | E4: VNA IPCA | F4: =MAX('VNA IPCA Projetado'!A2:A15909) -> 2034-02-15
A5: Data Resgate | B5: 2032-08-15 | E5: CDI | F5: =MAX('DI Futuro Projetado'!B2:B1048576) -> 2034-08-04
A6: Cup. Semestral | B6: 0.06
G8: Taxa % a.a. | I8: $
F9: =SUMPRODUCT(F12:F113,D12:D113)/SUM(D12:D113) -> 10.98681723 | G9: =SUMPRODUCT(G12:G113,D12:D113)/SUM(D12:D113) -> 3.830176433 | H9: =SUMPRODUCT(H12:H113,D12:D113)/SUM(D12:D113) -> 6.892563239 | I9: =SUM(I12:I113) -> 8398.270978
A11: Próx Cupom | B11: Cupom nr. | C11: Data | D11: Fluxo (Peso) | E11: Dias 252 | F11: Taxa Nominal | G11: Inflação VNA | H11: Taxa Real Projetada | I11: $ Futuro
A12: =COUPNCD(B4,B5,2) -> 2024-02-15 | B12: 1 | C12: =IF(COUPNCD(B4,B5,2)<=WORKDAY(WORKDAY($B$5,-1,Feriados!$A$2:$A$10000),1,Feriados!$A$2:$A$10000),WORKDAY(WORKDAY(COUPNCD(B4,B5,2),-1,Feriados!$A$2:$A$10000),1,Feriados!$A$2:$A$10000),"") -> 2024-02-15 | D12: =IF(C12="","",IF(C12<$B$5,TRUNC(((1+$B$6)^(1/2)-1)*100,6),IF(C12=WORKDAY(WORKDAY($B$5,-1,Feriados!$A$2:$A$10000),1,Feriados!$A$2:$A$10000),TRUNC(((1+$B$6)^(1/2)-1)*100,6)+100,""))) -> 2.956301 | E12: =IF(C12="","",NETWORKDAYS($B$4,C12,Feriados!$A$2:$A$10000)-1) -> 120 | F12: =IF(C12="","",VLOOKUP(C12,'DI Futuro Projetado'!B:G,6,FALSE)) -> 12.59699146 | G12: =IF(C12="","",(((VLOOKUP(C12,'VNA IPCA Projetado'!A:B,2,FALSE)/VLOOKUP($B$4,'VNA IPCA Projetado'!A:B,2,FALSE))^(252/E12))-1)*100) -> 4.766312701 | H12: =IF(C12="","",((1+F12/100)/(1+G12/100)-1)*100) -> 7.474424326 | I12: =IF(C12="","",(VLOOKUP(C12,'VNA IPCA Projetado'!A:B,2,FALSE))*D12/100) -> 124.8583876
A13: =EDATE(A12,6) -> 2024-08-15 | B13: =IF(C13="","",B12+1) -> 2 | C13: =IF(EDATE(A12,6)<=WORKDAY(WORKDAY($B$5,-1,Feriados!$A$2:$A$10000),1,Feriados!$A$2:$A$10000),WORKDAY(WORKDAY(EDATE(A12,6),-1,Feriados!$A$2:$A$10000),1,Feriados!$A$2:$A$10000),"") -> 2024-08-15 | D13: =IF(C13="","",IF(C13<$B$5,TRUNC(((1+$B$6)^(1/2)-1)*100,6),IF(C13=WORKDAY(WORKDAY($B$5,-1,Feriados!$A$2:$A$10000),1,Feriados!$A$2:$A$10000),TRUNC(((1+$B$6)^(1/2)-1)*100,6)+100,""))) -> 2.956301 | E13: =IF(C13="","",NETWORKDAYS($B$4,C13,Feriados!$A$2:$A$10000)-1) -> 247 | F13: =IF(C13="","",VLOOKUP(C13,'DI Futuro Projetado'!B:G,6,FALSE)) -> 11.68042309 | G13: =IF(C13="","",(((VLOOKUP(C13,'VNA IPCA Projetado'!A:B,2,FALSE)/VLOOKUP($B$4,'VNA IPCA Projetado'!A:B,2,FALSE))^(252/E13))-1)*100) -> 4.225350694 | H13: =IF(C13="","",((1+F13/100)/(1+G13/100)-1)*100) -> 7.152839827 | I13: =IF(C13="","",(VLOOKUP(C13,'VNA IPCA Projetado'!A:B,2,FALSE))*D13/100) -> 127.1759855
A14: =EDATE(A13,6) -> 2025-02-15 | B14: 3 | C14: =IF(EDATE(A13,6)<=WORKDAY(WORKDAY($B$5,-1,Feriados!$A$2:$A$10000),1,Feriados!$A$2:$A$10000),WORKDAY(WORKDAY(EDATE(A13,6),-1,Feriados!$A$2:$A$10000),1,Feriados!$A$2:$A$10000),"") -> 2025-02-17 | D14: =IF(C14="","",IF(C14<$B$5,TRUNC(((1+$B$6)^(1/2)-1)*100,6),IF(C14=WORKDAY(WORKDAY($B$5,-1,Feriados!$A$2:$A$10000),1,Feriados!$A$2:$A$10000),TRUNC(((1+$B$6)^(1/2)-1)*100,6)+100,""))) -> 2.956301 | E14: =IF(C14="","",NETWORKDAYS($B$4,C14,Feriados!$A$2:$A$10000)-1) -> 376 | F14: =IF(C14="","",VLOOKUP(C14,'DI Futuro Projetado'!B:G,6,FALSE)) -> 11.15323398 | G14: =IF(C14="","",(((VLOOKUP(C14,'VNA IPCA Projetado'!A:B,2,FALSE)/VLOOKUP($B$4,'VNA IPCA Projetado'!A:B,2,FALSE))^(252/E14))-1)*100) -> 4.061472466 | H14: 6.814973256 | I14: =IF(C14="","",(VLOOKUP(C14,'VNA IPCA Projetado'!A:B,2,FALSE))*D14/100) -> 129.5943564
A15: 2025-08-15 | B15: 4 | C15: =IF(EDATE(A14,6)<=WORKDAY(WORKDAY($B$5,-1,Feriados!$A$2:$A$10000),1,Feriados!$A$2:$A$10000),WORKDAY(WORKDAY(EDATE(A14,6),-1,Feriados!$A$2:$A$10000),1,Feriados!$A$2:$A$10000),"") -> 2025-08-15 | D15: =IF(C15="","",IF(C15<$B$5,TRUNC(((1+$B$6)^(1/2)-1)*100,6),IF(C15=WORKDAY(WORKDAY($B$5,-1,Feriados!$A$2:$A$10000),1,Feriados!$A$2:$A$10000),TRUNC(((1+$B$6)^(1/2)-1)*100,6)+100,""))) -> 2.956301 | E15: =IF(C15="","",NETWORKDAYS($B$4,C15,Feriados!$A$2:$A$10000)-1) -> 499 | F15: =IF(C15="","",VLOOKUP(C15,'DI Futuro Projetado'!B:G,6,FALSE)) -> 10.90506727 | G15: =IF(C15="","",(((VLOOKUP(C15,'VNA IPCA Projetado'!A:B,2,FALSE)/VLOOKUP($B$4,'VNA IPCA Projetado'!A:B,2,FALSE))^(252/E15))-1)*100) -> 3.967917426 | H15: 6.672394734 | I15: =IF(C15="","",(VLOOKUP(C15,'VNA IPCA Projetado'!A:B,2,FALSE))*D15/100) -> 131.9021109
A16: 2026-02-15 | B16: 5 | C16: =IF(EDATE(A15,6)<=WORKDAY(WORKDAY($B$5,-1,Feriados!$A$2:$A$10000),1,Feriados!$A$2:$A$10000),WORKDAY(WORKDAY(EDATE(A15,6),-1,Feriados!$A$2:$A$10000),1,Feriados!$A$2:$A$10000),"") -> 2026-02-18 | D16: =IF(C16="","",IF(C16<$B$5,TRUNC(((1+$B$6)^(1/2)-1)*100,6),IF(C16=WORKDAY(WORKDAY($B$5,-1,Feriados!$A$2:$A$10000),1,Feriados!$A$2:$A$10000),TRUNC(((1+$B$6)^(1/2)-1)*100,6)+100,""))) -> 2.956301 | E16: =IF(C16="","",NETWORKDAYS($B$4,C16,Feriados!$A$2:$A$10000)-1) -> 628 | F16: =IF(C16="","",VLOOKUP(C16,'DI Futuro Projetado'!B:G,6,FALSE)) -> 10.74956782 | G16: =IF(C16="","",(((VLOOKUP(C16,'VNA IPCA Projetado'!A:B,2,FALSE)/VLOOKUP($B$4,'VNA IPCA Projetado'!A:B,2,FALSE))^(252/E16))-1)*100) -> 3.92353884 | H16: 6.568318459 | I16: =IF(C16="","",(VLOOKUP(C16,'VNA IPCA Projetado'!A:B,2,FALSE))*D16/100) -> 134.4127691
A17: 2026-08-15 | B17: 6 | C17: =IF(EDATE(A16,6)<=WORKDAY(WORKDAY($B$5,-1,Feriados!$A$2:$A$10000),1,Feriados!$A$2:$A$10000),WORKDAY(WORKDAY(EDATE(A16,6),-1,Feriados!$A$2:$A$10000),1,Feriados!$A$2:$A$10000),"") -> 2026-08-17 | D17: =IF(C17="","",IF(C17<$B$5,TRUNC(((1+$B$6)^(1/2)-1)*100,6),IF(C17=WORKDAY(WORKDAY($B$5,-1,Feriados!$A$2:$A$10000),1,Feriados!$A$2:$A$10000),TRUNC(((1+$B$6)^(1/2)-1)*100,6)+100,""))) -> 2.956301 | E17: =IF(C17="","",NETWORKDAYS($B$4,C17,Feriados!$A$2:$A$10000)-1) -> 752 | F17: =IF(C17="","",VLOOKUP(C17,'DI Futuro Projetado'!B:G,6,FALSE)) -> 10.65045976 | G17: =IF(C17="","",(((VLOOKUP(C17,'VNA IPCA Projetado'!A:B,2,FALSE)/VLOOKUP($B$4,'VNA IPCA Projetado'!A:B,2,FALSE))^(252/E17))-1)*100) -> 3.878750636 | H17: 6.518858844 | I17: =IF(C17="","",(VLOOKUP(C17,'VNA IPCA Projetado'!A:B,2,FALSE))*D17/100) -> 136.8063276
A18: 2027-02-15 | B18: 7 | C18: =IF(EDATE(A17,6)<=WORKDAY(WORKDAY($B$5,-1,Feriados!$A$2:$A$10000),1,Feriados!$A$2:$A$10000),WORKDAY(WORKDAY(EDATE(A17,6),-1,Feriados!$A$2:$A$10000),1,Feriados!$A$2:$A$10000),"") -> 2027-02-15 | D18: =IF(C18="","",IF(C18<$B$5,TRUNC(((1+$B$6)^(1/2)-1)*100,6),IF(C18=WORKDAY(WORKDAY($B$5,-1,Feriados!$A$2:$A$10000),1,Feriados!$A$2:$A$10000),TRUNC(((1+$B$6)^(1/2)-1)*100,6)+100,""))) -> 2.956301 | E18: =IF(C18="","",NETWORKDAYS($B$4,C18,Feriados!$A$2:$A$10000)-1) -> 875 | F18: =IF(C18="","",VLOOKUP(C18,'DI Futuro Projetado'!B:G,6,FALSE)) -> 10.60745898 | G18: =IF(C18="","",(((VLOOKUP(C18,'VNA IPCA Projetado'!A:B,2,FALSE)/VLOOKUP($B$4,'VNA IPCA Projetado'!A:B,2,FALSE))^(252/E18))-1)*100) -> 3.887166865 | H18: 6.468837602 | I18: =IF(C18="","",(VLOOKUP(C18,'VNA IPCA Projetado'!A:B,2,FALSE))*D18/100) -> 139.4103339
A19: 2027-08-15 | B19: 8 | C19: =IF(EDATE(A18,6)<=WORKDAY(WORKDAY($B$5,-1,Feriados!$A$2:$A$10000),1,Feriados!$A$2:$A$10000),WORKDAY(WORKDAY(EDATE(A18,6),-1,Feriados!$A$2:$A$10000),1,Feriados!$A$2:$A$10000),"") -> 2027-08-16 | D19: =IF(C19="","",IF(C19<$B$5,TRUNC(((1+$B$6)^(1/2)-1)*100,6),IF(C19=WORKDAY(WORKDAY($B$5,-1,Feriados!$A$2:$A$10000),1,Feriados!$A$2:$A$10000),TRUNC(((1+$B$6)^(1/2)-1)*100,6)+100,""))) -> 2.956301 | E19: =IF(C19="","",NETWORKDAYS($B$4,C19,Feriados!$A$2:$A$10000)-1) -> 1002 | F19: =IF(C19="","",VLOOKUP(C19,'DI Futuro Projetado'!B:G,6,FALSE)) -> 10.6128318 | G19: =IF(C19="","",(((VLOOKUP(C19,'VNA IPCA Projetado'!A:B,2,FALSE)/VLOOKUP($B$4,'VNA IPCA Projetado'!A:B,2,FALSE))^(252/E19))-1)*100) -> 3.846204752 | H19: 6.51600804 | I19: =IF(C19="","",(VLOOKUP(C19,'VNA IPCA Projetado'!A:B,2,FALSE))*D19/100) -> 141.8928867
A20: 2028-02-15 | B20: 9 | C20: =IF(EDATE(A19,6)<=WORKDAY(WORKDAY($B$5,-1,Feriados!$A$2:$A$10000),1,Feriados!$A$2:$A$10000),WORKDAY(WORKDAY(EDATE(A19,6),-1,Feriados!$A$2:$A$10000),1,Feriados!$A$2:$A$10000),"") -> 2028-02-15 | D20: =IF(C20="","",IF(C20<$B$5,TRUNC(((1+$B$6)^(1/2)-1)*100,6),IF(C20=WORKDAY(WORKDAY($B$5,-1,Feriados!$A$2:$A$10000),1,Feriados!$A$2:$A$10000),TRUNC(((1+$B$6)^(1/2)-1)*100,6)+100,""))) -> 2.956301 | E20: =IF(C20="","",NETWORKDAYS($B$4,C20,Feriados!$A$2:$A$10000)-1) -> 1129 | F20: =IF(C20="","",VLOOKUP(C20,'DI Futuro Projetado'!B:G,6,FALSE)) -> 10.64040462 | G20: =IF(C20="","",(((VLOOKUP(C20,'VNA IPCA Projetado'!A:B,2,FALSE)/VLOOKUP($B$4,'VNA IPCA Projetado'!A:B,2,FALSE))^(252/E20))-1)*100) -> 3.842384774 | H20: 6.54647894 | I20: =IF(C20="","",(VLOOKUP(C20,'VNA IPCA Projetado'!A:B,2,FALSE))*D20/100) -> 144.5937119
A21: 2028-08-15 | B21: 10 | C21: =IF(EDATE(A20,6)<=WORKDAY(WORKDAY($B$5,-1,Feriados!$A$2:$A$10000),1,Feriados!$A$2:$A$10000),WORKDAY(WORKDAY(EDATE(A20,6),-1,Feriados!$A$2:$A$10000),1,Feriados!$A$2:$A$10000),"") -> 2028-08-15 | D21: =IF(C21="","",IF(C21<$B$5,TRUNC(((1+$B$6)^(1/2)-1)*100,6),IF(C21=WORKDAY(WORKDAY($B$5,-1,Feriados!$A$2:$A$10000),1,Feriados!$A$2:$A$10000),TRUNC(((1+$B$6)^(1/2)-1)*100,6)+100,""))) -> 2.956301 | E21: =IF(C21="","",NETWORKDAYS($B$4,C21,Feriados!$A$2:$A$10000)-1) -> 1253 | F21: =IF(C21="","",VLOOKUP(C21,'DI Futuro Projetado'!B:G,6,FALSE)) -> 10.6907543 | G21: =IF(C21="","",(((VLOOKUP(C21,'VNA IPCA Projetado'!A:B,2,FALSE)/VLOOKUP($B$4,'VNA IPCA Projetado'!A:B,2,FALSE))^(252/E21))-1)*100) -> 3.823549684 | H21: 6.614303442 | I21: =IF(C21="","",(VLOOKUP(C21,'VNA IPCA Projetado'!A:B,2,FALSE))*D21/100) -> 147.1685678
A22: 2029-02-15 | B22: 11 | C22: =IF(EDATE(A21,6)<=WORKDAY(WORKDAY($B$5,-1,Feriados!$A$2:$A$10000),1,Feriados!$A$2:$A$10000),WORKDAY(WORKDAY(EDATE(A21,6),-1,Feriados!$A$2:$A$10000),1,Feriados!$A$2:$A$10000),"") -> 2029-02-15 | D22: =IF(C22="","",IF(C22<$B$5,TRUNC(((1+$B$6)^(1/2)-1)*100,6),IF(C22=WORKDAY(WORKDAY($B$5,-1,Feriados!$A$2:$A$10000),1,Feriados!$A$2:$A$10000),TRUNC(((1+$B$6)^(1/2)-1)*100,6)+100,""))) -> 2.956301 | E22: =IF(C22="","",NETWORKDAYS($B$4,C22,Feriados!$A$2:$A$10000)-1) -> 1377 | F22: =IF(C22="","",VLOOKUP(C22,'DI Futuro Projetado'!B:G,6,FALSE)) -> 10.74123902 | G22: =IF(C22="","",(((VLOOKUP(C22,'VNA IPCA Projetado'!A:B,2,FALSE)/VLOOKUP($B$4,'VNA IPCA Projetado'!A:B,2,FALSE))^(252/E22))-1)*100) -> 3.830995249 | H22: 6.655280298 | I22: =IF(C22="","",(VLOOKUP(C22,'VNA IPCA Projetado'!A:B,2,FALSE))*D22/100) -> 149.9698116
A23: 2029-08-15 | B23: 12 | C23: =IF(EDATE(A22,6)<=WORKDAY(WORKDAY($B$5,-1,Feriados!$A$2:$A$10000),1,Feriados!$A$2:$A$10000),WORKDAY(WORKDAY(EDATE(A22,6),-1,Feriados!$A$2:$A$10000),1,Feriados!$A$2:$A$10000),"") -> 2029-08-15 | D23: =IF(C23="","",IF(C23<$B$5,TRUNC(((1+$B$6)^(1/2)-1)*100,6),IF(C23=WORKDAY(WORKDAY($B$5,-1,Feriados!$A$2:$A$10000),1,Feriados!$A$2:$A$10000),TRUNC(((1+$B$6)^(1/2)-1)*100,6)+100,""))) -> 2.956301 | E23: =IF(C23="","",NETWORKDAYS($B$4,C23,Feriados!$A$2:$A$10000)-1) -> 1503 | F23: =IF(C23="","",VLOOKUP(C23,'DI Futuro Projetado'!B:G,6,FALSE)) -> 10.79627105 | G23: =IF(C23="","",(((VLOOKUP(C23,'VNA IPCA Projetado'!A:B,2,FALSE)/VLOOKUP($B$4,'VNA IPCA Projetado'!A:B,2,FALSE))^(252/E23))-1)*100) -> 3.811040678 | H23: 6.728793319 | I23: =IF(C23="","",(VLOOKUP(C23,'VNA IPCA Projetado'!A:B,2,FALSE))*D23/100) -> 152.6404026
A24: 2030-02-15 | B24: 13 | C24: =IF(EDATE(A23,6)<=WORKDAY(WORKDAY($B$5,-1,Feriados!$A$2:$A$10000),1,Feriados!$A$2:$A$10000),WORKDAY(WORKDAY(EDATE(A23,6),-1,Feriados!$A$2:$A$10000),1,Feriados!$A$2:$A$10000),"") -> 2030-02-15 | D24: =IF(C24="","",IF(C24<$B$5,TRUNC(((1+$B$6)^(1/2)-1)*100,6),IF(C24=WORKDAY(WORKDAY($B$5,-1,Feriados!$A$2:$A$10000),1,Feriados!$A$2:$A$10000),TRUNC(((1+$B$6)^(1/2)-1)*100,6)+100,""))) -> 2.956301 | E24: =IF(C24="","",NETWORKDAYS($B$4,C24,Feriados!$A$2:$A$10000)-1) -> 1629 | F24: =IF(C24="","",VLOOKUP(C24,'DI Futuro Projetado'!B:G,6,FALSE)) -> 10.84285349 | G24: =IF(C24="","",(((VLOOKUP(C24,'VNA IPCA Projetado'!A:B,2,FALSE)/VLOOKUP($B$4,'VNA IPCA Projetado'!A:B,2,FALSE))^(252/E24))-1)*100) -> 3.813518573 | H24: 6.771117106 | I24: =IF(C24="","",(VLOOKUP(C24,'VNA IPCA Projetado'!A:B,2,FALSE))*D24/100) -> 155.5457986
A25: 2030-08-15 | B25: 14 | C25: =IF(EDATE(A24,6)<=WORKDAY(WORKDAY($B$5,-1,Feriados!$A$2:$A$10000),1,Feriados!$A$2:$A$10000),WORKDAY(WORKDAY(EDATE(A24,6),-1,Feriados!$A$2:$A$10000),1,Feriados!$A$2:$A$10000),"") -> 2030-08-15 | D25: =IF(C25="","",IF(C25<$B$5,TRUNC(((1+$B$6)^(1/2)-1)*100,6),IF(C25=WORKDAY(WORKDAY($B$5,-1,Feriados!$A$2:$A$10000),1,Feriados!$A$2:$A$10000),TRUNC(((1+$B$6)^(1/2)-1)*100,6)+100,""))) -> 2.956301 | E25: =IF(C25="","",NETWORKDAYS($B$4,C25,Feriados!$A$2:$A$10000)-1) -> 1753 | F25: =IF(C25="","",VLOOKUP(C25,'DI Futuro Projetado'!B:G,6,FALSE)) -> 10.88217305 | G25: =IF(C25="","",(((VLOOKUP(C25,'VNA IPCA Projetado'!A:B,2,FALSE)/VLOOKUP($B$4,'VNA IPCA Projetado'!A:B,2,FALSE))^(252/E25))-1)*100) -> 3.802100467 | H25: 6.82074115 | I25: =IF(C25="","",(VLOOKUP(C25,'VNA IPCA Projetado'!A:B,2,FALSE))*D25/100) -> 158.315684
A26: 2031-02-15 | B26: 15 | C26: =IF(EDATE(A25,6)<=WORKDAY(WORKDAY($B$5,-1,Feriados!$A$2:$A$10000),1,Feriados!$A$2:$A$10000),WORKDAY(WORKDAY(EDATE(A25,6),-1,Feriados!$A$2:$A$10000),1,Feriados!$A$2:$A$10000),"") -> 2031-02-17 | D26: =IF(C26="","",IF(C26<$B$5,TRUNC(((1+$B$6)^(1/2)-1)*100,6),IF(C26=WORKDAY(WORKDAY($B$5,-1,Feriados!$A$2:$A$10000),1,Feriados!$A$2:$A$10000),TRUNC(((1+$B$6)^(1/2)-1)*100,6)+100,""))) -> 2.956301 | E26: =IF(C26="","",NETWORKDAYS($B$4,C26,Feriados!$A$2:$A$10000)-1) -> 1882 | F26: =IF(C26="","",VLOOKUP(C26,'DI Futuro Projetado'!B:G,6,FALSE)) -> 10.91757978 | G26: =IF(C26="","",(((VLOOKUP(C26,'VNA IPCA Projetado'!A:B,2,FALSE)/VLOOKUP($B$4,'VNA IPCA Projetado'!A:B,2,FALSE))^(252/E26))-1)*100) -> 3.79866911 | H26: 6.858383378 | I26: =IF(C26="","",(VLOOKUP(C26,'VNA IPCA Projetado'!A:B,2,FALSE))*D26/100) -> 161.3291049
A27: 2031-08-15 | B27: 16 | C27: =IF(EDATE(A26,6)<=WORKDAY(WORKDAY($B$5,-1,Feriados!$A$2:$A$10000),1,Feriados!$A$2:$A$10000),WORKDAY(WORKDAY(EDATE(A26,6),-1,Feriados!$A$2:$A$10000),1,Feriados!$A$2:$A$10000),"") -> 2031-08-15 | D27: =IF(C27="","",IF(C27<$B$5,TRUNC(((1+$B$6)^(1/2)-1)*100,6),IF(C27=WORKDAY(WORKDAY($B$5,-1,Feriados!$A$2:$A$10000),1,Feriados!$A$2:$A$10000),TRUNC(((1+$B$6)^(1/2)-1)*100,6)+100,""))) -> 2.956301 | E27: =IF(C27="","",NETWORKDAYS($B$4,C27,Feriados!$A$2:$A$10000)-1) -> 2005 | F27: =IF(C27="","",VLOOKUP(C27,'DI Futuro Projetado'!B:G,6,FALSE)) -> 10.9471103 | G27: =IF(C27="","",(((VLOOKUP(C27,'VNA IPCA Projetado'!A:B,2,FALSE)/VLOOKUP($B$4,'VNA IPCA Projetado'!A:B,2,FALSE))^(252/E27))-1)*100) -> 3.791535664 | H27: 6.894179364 | I27: =IF(C27="","",(VLOOKUP(C27,'VNA IPCA Projetado'!A:B,2,FALSE))*D27/100) -> 164.2019767
A28: 2032-02-15 | B28: 17 | C28: =IF(EDATE(A27,6)<=WORKDAY(WORKDAY($B$5,-1,Feriados!$A$2:$A$10000),1,Feriados!$A$2:$A$10000),WORKDAY(WORKDAY(EDATE(A27,6),-1,Feriados!$A$2:$A$10000),1,Feriados!$A$2:$A$10000),"") -> 2032-02-16 | D28: =IF(C28="","",IF(C28<$B$5,TRUNC(((1+$B$6)^(1/2)-1)*100,6),IF(C28=WORKDAY(WORKDAY($B$5,-1,Feriados!$A$2:$A$10000),1,Feriados!$A$2:$A$10000),TRUNC(((1+$B$6)^(1/2)-1)*100,6)+100,""))) -> 2.956301 | E28: =IF(C28="","",NETWORKDAYS($B$4,C28,Feriados!$A$2:$A$10000)-1) -> 2132 | F28: =IF(C28="","",VLOOKUP(C28,'DI Futuro Projetado'!B:G,6,FALSE)) -> 10.97403472 | G28: =IF(C28="","",(((VLOOKUP(C28,'VNA IPCA Projetado'!A:B,2,FALSE)/VLOOKUP($B$4,'VNA IPCA Projetado'!A:B,2,FALSE))^(252/E28))-1)*100) -> 3.792769523 | H28: 6.91884919 | I28: =IF(C28="","",(VLOOKUP(C28,'VNA IPCA Projetado'!A:B,2,FALSE))*D28/100) -> 167.3274387
A29: 2032-08-15 | B29: 18 | C29: =IF(EDATE(A28,6)<=WORKDAY(WORKDAY($B$5,-1,Feriados!$A$2:$A$10000),1,Feriados!$A$2:$A$10000),WORKDAY(WORKDAY(EDATE(A28,6),-1,Feriados!$A$2:$A$10000),1,Feriados!$A$2:$A$10000),"") -> 2032-08-16 | D29: =IF(C29="","",IF(C29<$B$5,TRUNC(((1+$B$6)^(1/2)-1)*100,6),IF(C29=WORKDAY(WORKDAY($B$5,-1,Feriados!$A$2:$A$10000),1,Feriados!$A$2:$A$10000),TRUNC(((1+$B$6)^(1/2)-1)*100,6)+100,""))) -> 102.956301 | E29: =IF(C29="","",NETWORKDAYS($B$4,C29,Feriados!$A$2:$A$10000)-1) -> 2259 | F29: =IF(C29="","",VLOOKUP(C29,'DI Futuro Projetado'!B:G,6,FALSE)) -> 10.9979422 | G29: =IF(C29="","",(((VLOOKUP(C29,'VNA IPCA Projetado'!A:B,2,FALSE)/VLOOKUP($B$4,'VNA IPCA Projetado'!A:B,2,FALSE))^(252/E29))-1)*100) -> 3.779918694 | H29: 6.955125415 | I29: =IF(C29="","",(VLOOKUP(C29,'VNA IPCA Projetado'!A:B,2,FALSE))*D29/100) -> 5931.125323
A30: 2033-02-15 | C30: =IF(EDATE(A29,6)<=WORKDAY(WORKDAY($B$5,-1,Feriados!$A$2:$A$10000),1,Feriados!$A$2:$A$10000),WORKDAY(WORKDAY(EDATE(A29,6),-1,Feriados!$A$2:$A$10000),1,Feriados!$A$2:$A$10000),"") ->  | D30: =IF(C30="","",IF(C30<$B$5,TRUNC(((1+$B$6)^(1/2)-1)*100,6),IF(C30=WORKDAY(WORKDAY($B$5,-1,Feriados!$A$2:$A$10000),1,Feriados!$A$2:$A$10000),TRUNC(((1+$B$6)^(1/2)-1)*100,6)+100,""))) ->  | E30: =IF(C30="","",NETWORKDAYS($B$4,C30,Feriados!$A$2:$A$10000)-1) ->  | F30: =IF(C30="","",VLOOKUP(C30,'DI Futuro Projetado'!B:G,6,FALSE)) ->  | G30: =IF(C30="","",(((VLOOKUP(C30,'VNA IPCA Projetado'!A:B,2,FALSE)/VLOOKUP($B$4,'VNA IPCA Projetado'!A:B,2,FALSE))^(252/E30))-1)*100) ->  | I30: =IF(C30="","",(VLOOKUP(C30,'VNA IPCA Projetado'!A:B,2,FALSE))*D30/100) -> 
A31: 2033-08-15 | C31: =IF(EDATE(A30,6)<=WORKDAY(WORKDAY($B$5,-1,Feriados!$A$2:$A$10000),1,Feriados!$A$2:$A$10000),WORKDAY(WORKDAY(EDATE(A30,6),-1,Feriados!$A$2:$A$10000),1,Feriados!$A$2:$A$10000),"") ->  | D31: =IF(C31="","",IF(C31<$B$5,TRUNC(((1+$B$6)^(1/2)-1)*100,6),IF(C31=WORKDAY(WORKDAY($B$5,-1,Feriados!$A$2:$A$10000),1,Feriados!$A$2:$A$10000),TRUNC(((1+$B$6)^(1/2)-1)*100,6)+100,""))) ->  | E31: =IF(C31="","",NETWORKDAYS($B$4,C31,Feriados!$A$2:$A$10000)-1) ->  | F31: =IF(C31="","",VLOOKUP(C31,'DI Futuro Projetado'!B:G,6,FALSE)) ->  | G31: =IF(C31="","",(((VLOOKUP(C31,'VNA IPCA Projetado'!A:B,2,FALSE)/VLOOKUP($B$4,'VNA IPCA Projetado'!A:B,2,FALSE))^(252/E31))-1)*100) ->  | I31: =IF(C31="","",(VLOOKUP(C31,'VNA IPCA Projetado'!A:B,2,FALSE))*D31/100) -> 
A32: 2034-02-15 | C32: =IF(EDATE(A31,6)<=WORKDAY(WORKDAY($B$5,-1,Feriados!$A$2:$A$10000),1,Feriados!$A$2:$A$10000),WORKDAY(WORKDAY(EDATE(A31,6),-1,Feriados!$A$2:$A$10000),1,Feriados!$A$2:$A$10000),"") ->  | D32: =IF(C32="","",IF(C32<$B$5,TRUNC(((1+$B$6)^(1/2)-1)*100,6),IF(C32=WORKDAY(WORKDAY($B$5,-1,Feriados!$A$2:$A$10000),1,Feriados!$A$2:$A$10000),TRUNC(((1+$B$6)^(1/2)-1)*100,6)+100,""))) ->  | E32: =IF(C32="","",NETWORKDAYS($B$4,C32,Feriados!$A$2:$A$10000)-1) ->  | F32: =IF(C32="","",VLOOKUP(C32,'DI Futuro Projetado'!B:G,6,FALSE)) ->  | G32: =IF(C32="","",(((VLOOKUP(C32,'VNA IPCA Projetado'!A:B,2,FALSE)/VLOOKUP($B$4,'VNA IPCA Projetado'!A:B,2,FALSE))^(252/E32))-1)*100) ->  | I32: =IF(C32="","",(VLOOKUP(C32,'VNA IPCA Projetado'!A:B,2,FALSE))*D32/100) -> 
A33: 2034-08-15 | C33: =IF(EDATE(A32,6)<=WORKDAY(WORKDAY($B$5,-1,Feriados!$A$2:$A$10000),1,Feriados!$A$2:$A$10000),WORKDAY(WORKDAY(EDATE(A32,6),-1,Feriados!$A$2:$A$10000),1,Feriados!$A$2:$A$10000),"") ->  | D33: =IF(C33="","",IF(C33<$B$5,TRUNC(((1+$B$6)^(1/2)-1)*100,6),IF(C33=WORKDAY(WORKDAY($B$5,-1,Feriados!$A$2:$A$10000),1,Feriados!$A$2:$A$10000),TRUNC(((1+$B$6)^(1/2)-1)*100,6)+100,""))) ->  | E33: =IF(C33="","",NETWORKDAYS($B$4,C33,Feriados!$A$2:$A$10000)-1) ->  | F33: =IF(C33="","",VLOOKUP(C33,'DI Futuro Projetado'!B:G,6,FALSE)) ->  | G33: =IF(C33="","",(((VLOOKUP(C33,'VNA IPCA Projetado'!A:B,2,FALSE)/VLOOKUP($B$4,'VNA IPCA Projetado'!A:B,2,FALSE))^(252/E33))-1)*100) ->  | I33: =IF(C33="","",(VLOOKUP(C33,'VNA IPCA Projetado'!A:B,2,FALSE))*D33/100) -> 
A34: 2035-02-15 | C34: =IF(EDATE(A33,6)<=WORKDAY(WORKDAY($B$5,-1,Feriados!$A$2:$A$10000),1,Feriados!$A$2:$A$10000),WORKDAY(WORKDAY(EDATE(A33,6),-1,Feriados!$A$2:$A$10000),1,Feriados!$A$2:$A$10000),"") ->  | D34: =IF(C34="","",IF(C34<$B$5,TRUNC(((1+$B$6)^(1/2)-1)*100,6),IF(C34=WORKDAY(WORKDAY($B$5,-1,Feriados!$A$2:$A$10000),1,Feriados!$A$2:$A$10000),TRUNC(((1+$B$6)^(1/2)-1)*100,6)+100,""))) ->  | E34: =IF(C34="","",NETWORKDAYS($B$4,C34,Feriados!$A$2:$A$10000)-1) ->  | F34: =IF(C34="","",VLOOKUP(C34,'DI Futuro Projetado'!B:G,6,FALSE)) ->  | G34: =IF(C34="","",(((VLOOKUP(C34,'VNA IPCA Projetado'!A:B,2,FALSE)/VLOOKUP($B$4,'VNA IPCA Projetado'!A:B,2,FALSE))^(252/E34))-1)*100) ->  | I34: =IF(C34="","",(VLOOKUP(C34,'VNA IPCA Projetado'!A:B,2,FALSE))*D34/100) -> 
A35: 2035-08-15 | C35: =IF(EDATE(A34,6)<=WORKDAY(WORKDAY($B$5,-1,Feriados!$A$2:$A$10000),1,Feriados!$A$2:$A$10000),WORKDAY(WORKDAY(EDATE(A34,6),-1,Feriados!$A$2:$A$10000),1,Feriados!$A$2:$A$10000),"") ->  | D35: =IF(C35="","",IF(C35<$B$5,TRUNC(((1+$B$6)^(1/2)-1)*100,6),IF(C35=WORKDAY(WORKDAY($B$5,-1,Feriados!$A$2:$A$10000),1,Feriados!$A$2:$A$10000),TRUNC(((1+$B$6)^(1/2)-1)*100,6)+100,""))) ->  | E35: =IF(C35="","",NETWORKDAYS($B$4,C35,Feriados!$A$2:$A$10000)-1) ->  | F35: =IF(C35="","",VLOOKUP(C35,'DI Futuro Projetado'!B:G,6,FALSE)) ->  | G35: =IF(C35="","",(((VLOOKUP(C35,'VNA IPCA Projetado'!A:B,2,FALSE)/VLOOKUP($B$4,'VNA IPCA Projetado'!A:B,2,FALSE))^(252/E35))-1)*100) ->  | I35: =IF(C35="","",(VLOOKUP(C35,'VNA IPCA Projetado'!A:B,2,FALSE))*D35/100) -> 
A36: 2036-02-15 | C36: =IF(EDATE(A35,6)<=WORKDAY(WORKDAY($B$5,-1,Feriados!$A$2:$A$10000),1,Feriados!$A$2:$A$10000),WORKDAY(WORKDAY(EDATE(A35,6),-1,Feriados!$A$2:$A$10000),1,Feriados!$A$2:$A$10000),"") ->  | D36: =IF(C36="","",IF(C36<$B$5,TRUNC(((1+$B$6)^(1/2)-1)*100,6),IF(C36=WORKDAY(WORKDAY($B$5,-1,Feriados!$A$2:$A$10000),1,Feriados!$A$2:$A$10000),TRUNC(((1+$B$6)^(1/2)-1)*100,6)+100,""))) ->  | E36: =IF(C36="","",NETWORKDAYS($B$4,C36,Feriados!$A$2:$A$10000)-1) ->  | F36: =IF(C36="","",VLOOKUP(C36,'DI Futuro Projetado'!B:G,6,FALSE)) ->  | G36: =IF(C36="","",(((VLOOKUP(C36,'VNA IPCA Projetado'!A:B,2,FALSE)/VLOOKUP($B$4,'VNA IPCA Projetado'!A:B,2,FALSE))^(252/E36))-1)*100) ->  | I36: =IF(C36="","",(VLOOKUP(C36,'VNA IPCA Projetado'!A:B,2,FALSE))*D36/100) -> 
A37: 2036-08-15 | C37: =IF(EDATE(A36,6)<=WORKDAY(WORKDAY($B$5,-1,Feriados!$A$2:$A$10000),1,Feriados!$A$2:$A$10000),WORKDAY(WORKDAY(EDATE(A36,6),-1,Feriados!$A$2:$A$10000),1,Feriados!$A$2:$A$10000),"") ->  | D37: =IF(C37="","",IF(C37<$B$5,TRUNC(((1+$B$6)^(1/2)-1)*100,6),IF(C37=WORKDAY(WORKDAY($B$5,-1,Feriados!$A$2:$A$10000),1,Feriados!$A$2:$A$10000),TRUNC(((1+$B$6)^(1/2)-1)*100,6)+100,""))) ->  | E37: =IF(C37="","",NETWORKDAYS($B$4,C37,Feriados!$A$2:$A$10000)-1) ->  | F37: =IF(C37="","",VLOOKUP(C37,'DI Futuro Projetado'!B:G,6,FALSE)) ->  | G37: =IF(C37="","",(((VLOOKUP(C37,'VNA IPCA Projetado'!A:B,2,FALSE)/VLOOKUP($B$4,'VNA IPCA Projetado'!A:B,2,FALSE))^(252/E37))-1)*100) ->  | I37: =IF(C37="","",(VLOOKUP(C37,'VNA IPCA Projetado'!A:B,2,FALSE))*D37/100) -> 
A38: 2037-02-15 | C38: =IF(EDATE(A37,6)<=WORKDAY(WORKDAY($B$5,-1,Feriados!$A$2:$A$10000),1,Feriados!$A$2:$A$10000),WORKDAY(WORKDAY(EDATE(A37,6),-1,Feriados!$A$2:$A$10000),1,Feriados!$A$2:$A$10000),"") ->  | D38: =IF(C38="","",IF(C38<$B$5,TRUNC(((1+$B$6)^(1/2)-1)*100,6),IF(C38=WORKDAY(WORKDAY($B$5,-1,Feriados!$A$2:$A$10000),1,Feriados!$A$2:$A$10000),TRUNC(((1+$B$6)^(1/2)-1)*100,6)+100,""))) ->  | E38: =IF(C38="","",NETWORKDAYS($B$4,C38,Feriados!$A$2:$A$10000)-1) ->  | F38: =IF(C38="","",VLOOKUP(C38,'DI Futuro Projetado'!B:G,6,FALSE)) ->  | G38: =IF(C38="","",(((VLOOKUP(C38,'VNA IPCA Projetado'!A:B,2,FALSE)/VLOOKUP($B$4,'VNA IPCA Projetado'!A:B,2,FALSE))^(252/E38))-1)*100) ->  | I38: =IF(C38="","",(VLOOKUP(C38,'VNA IPCA Projetado'!A:B,2,FALSE))*D38/100) -> 
A39: 2037-08-15 | C39: =IF(EDATE(A38,6)<=WORKDAY(WORKDAY($B$5,-1,Feriados!$A$2:$A$10000),1,Feriados!$A$2:$A$10000),WORKDAY(WORKDAY(EDATE(A38,6),-1,Feriados!$A$2:$A$10000),1,Feriados!$A$2:$A$10000),"") ->  | D39: =IF(C39="","",IF(C39<$B$5,TRUNC(((1+$B$6)^(1/2)-1)*100,6),IF(C39=WORKDAY(WORKDAY($B$5,-1,Feriados!$A$2:$A$10000),1,Feriados!$A$2:$A$10000),TRUNC(((1+$B$6)^(1/2)-1)*100,6)+100,""))) ->  | E39: =IF(C39="","",NETWORKDAYS($B$4,C39,Feriados!$A$2:$A$10000)-1) ->  | F39: =IF(C39="","",VLOOKUP(C39,'DI Futuro Projetado'!B:G,6,FALSE)) ->  | G39: =IF(C39="","",(((VLOOKUP(C39,'VNA IPCA Projetado'!A:B,2,FALSE)/VLOOKUP($B$4,'VNA IPCA Projetado'!A:B,2,FALSE))^(252/E39))-1)*100) ->  | I39: =IF(C39="","",(VLOOKUP(C39,'VNA IPCA Projetado'!A:B,2,FALSE))*D39/100) -> 
A40: 2038-02-15 | C40: =IF(EDATE(A39,6)<=WORKDAY(WORKDAY($B$5,-1,Feriados!$A$2:$A$10000),1,Feriados!$A$2:$A$10000),WORKDAY(WORKDAY(EDATE(A39,6),-1,Feriados!$A$2:$A$10000),1,Feriados!$A$2:$A$10000),"") ->  | D40: =IF(C40="","",IF(C40<$B$5,TRUNC(((1+$B$6)^(1/2)-1)*100,6),IF(C40=WORKDAY(WORKDAY($B$5,-1,Feriados!$A$2:$A$10000),1,Feriados!$A$2:$A$10000),TRUNC(((1+$B$6)^(1/2)-1)*100,6)+100,""))) ->  | E40: =IF(C40="","",NETWORKDAYS($B$4,C40,Feriados!$A$2:$A$10000)-1) ->  | F40: =IF(C40="","",VLOOKUP(C40,'DI Futuro Projetado'!B:G,6,FALSE)) ->  | G40: =IF(C40="","",(((VLOOKUP(C40,'VNA IPCA Projetado'!A:B,2,FALSE)/VLOOKUP($B$4,'VNA IPCA Projetado'!A:B,2,FALSE))^(252/E40))-1)*100) ->  | I40: =IF(C40="","",(VLOOKUP(C40,'VNA IPCA Projetado'!A:B,2,FALSE))*D40/100) -> 
A41: 2038-08-15 | C41: =IF(EDATE(A40,6)<=WORKDAY(WORKDAY($B$5,-1,Feriados!$A$2:$A$10000),1,Feriados!$A$2:$A$10000),WORKDAY(WORKDAY(EDATE(A40,6),-1,Feriados!$A$2:$A$10000),1,Feriados!$A$2:$A$10000),"") ->  | D41: =IF(C41="","",IF(C41<$B$5,TRUNC(((1+$B$6)^(1/2)-1)*100,6),IF(C41=WORKDAY(WORKDAY($B$5,-1,Feriados!$A$2:$A$10000),1,Feriados!$A$2:$A$10000),TRUNC(((1+$B$6)^(1/2)-1)*100,6)+100,""))) ->  | E41: =IF(C41="","",NETWORKDAYS($B$4,C41,Feriados!$A$2:$A$10000)-1) ->  | F41: =IF(C41="","",VLOOKUP(C41,'DI Futuro Projetado'!B:G,6,FALSE)) ->  | G41: =IF(C41="","",(((VLOOKUP(C41,'VNA IPCA Projetado'!A:B,2,FALSE)/VLOOKUP($B$4,'VNA IPCA Projetado'!A:B,2,FALSE))^(252/E41))-1)*100) ->  | I41: =IF(C41="","",(VLOOKUP(C41,'VNA IPCA Projetado'!A:B,2,FALSE))*D41/100) -> 
A42: 2039-02-15 | C42: =IF(EDATE(A41,6)<=WORKDAY(WORKDAY($B$5,-1,Feriados!$A$2:$A$10000),1,Feriados!$A$2:$A$10000),WORKDAY(WORKDAY(EDATE(A41,6),-1,Feriados!$A$2:$A$10000),1,Feriados!$A$2:$A$10000),"") ->  | D42: =IF(C42="","",IF(C42<$B$5,TRUNC(((1+$B$6)^(1/2)-1)*100,6),IF(C42=WORKDAY(WORKDAY($B$5,-1,Feriados!$A$2:$A$10000),1,Feriados!$A$2:$A$10000),TRUNC(((1+$B$6)^(1/2)-1)*100,6)+100,""))) ->  | E42: =IF(C42="","",NETWORKDAYS($B$4,C42,Feriados!$A$2:$A$10000)-1) ->  | F42: =IF(C42="","",VLOOKUP(C42,'DI Futuro Projetado'!B:G,6,FALSE)) ->  | G42: =IF(C42="","",(((VLOOKUP(C42,'VNA IPCA Projetado'!A:B,2,FALSE)/VLOOKUP($B$4,'VNA IPCA Projetado'!A:B,2,FALSE))^(252/E42))-1)*100) ->  | I42: =IF(C42="","",(VLOOKUP(C42,'VNA IPCA Projetado'!A:B,2,FALSE))*D42/100) -> 
A43: 2039-08-15 | C43: =IF(EDATE(A42,6)<=WORKDAY(WORKDAY($B$5,-1,Feriados!$A$2:$A$10000),1,Feriados!$A$2:$A$10000),WORKDAY(WORKDAY(EDATE(A42,6),-1,Feriados!$A$2:$A$10000),1,Feriados!$A$2:$A$10000),"") ->  | D43: =IF(C43="","",IF(C43<$B$5,TRUNC(((1+$B$6)^(1/2)-1)*100,6),IF(C43=WORKDAY(WORKDAY($B$5,-1,Feriados!$A$2:$A$10000),1,Feriados!$A$2:$A$10000),TRUNC(((1+$B$6)^(1/2)-1)*100,6)+100,""))) ->  | E43: =IF(C43="","",NETWORKDAYS($B$4,C43,Feriados!$A$2:$A$10000)-1) ->  | F43: =IF(C43="","",VLOOKUP(C43,'DI Futuro Projetado'!B:G,6,FALSE)) ->  | G43: =IF(C43="","",(((VLOOKUP(C43,'VNA IPCA Projetado'!A:B,2,FALSE)/VLOOKUP($B$4,'VNA IPCA Projetado'!A:B,2,FALSE))^(252/E43))-1)*100) ->  | I43: =IF(C43="","",(VLOOKUP(C43,'VNA IPCA Projetado'!A:B,2,FALSE))*D43/100) -> 
A44: 2040-02-15 | C44: =IF(EDATE(A43,6)<=WORKDAY(WORKDAY($B$5,-1,Feriados!$A$2:$A$10000),1,Feriados!$A$2:$A$10000),WORKDAY(WORKDAY(EDATE(A43,6),-1,Feriados!$A$2:$A$10000),1,Feriados!$A$2:$A$10000),"") ->  | D44: =IF(C44="","",IF(C44<$B$5,TRUNC(((1+$B$6)^(1/2)-1)*100,6),IF(C44=WORKDAY(WORKDAY($B$5,-1,Feriados!$A$2:$A$10000),1,Feriados!$A$2:$A$10000),TRUNC(((1+$B$6)^(1/2)-1)*100,6)+100,""))) ->  | E44: =IF(C44="","",NETWORKDAYS($B$4,C44,Feriados!$A$2:$A$10000)-1) ->  | F44: =IF(C44="","",VLOOKUP(C44,'DI Futuro Projetado'!B:G,6,FALSE)) ->  | G44: =IF(C44="","",(((VLOOKUP(C44,'VNA IPCA Projetado'!A:B,2,FALSE)/VLOOKUP($B$4,'VNA IPCA Projetado'!A:B,2,FALSE))^(252/E44))-1)*100) ->  | I44: =IF(C44="","",(VLOOKUP(C44,'VNA IPCA Projetado'!A:B,2,FALSE))*D44/100) -> 
A45: 2040-08-15 | C45: =IF(EDATE(A44,6)<=WORKDAY(WORKDAY($B$5,-1,Feriados!$A$2:$A$10000),1,Feriados!$A$2:$A$10000),WORKDAY(WORKDAY(EDATE(A44,6),-1,Feriados!$A$2:$A$10000),1,Feriados!$A$2:$A$10000),"") ->  | D45: =IF(C45="","",IF(C45<$B$5,TRUNC(((1+$B$6)^(1/2)-1)*100,6),IF(C45=WORKDAY(WORKDAY($B$5,-1,Feriados!$A$2:$A$10000),1,Feriados!$A$2:$A$10000),TRUNC(((1+$B$6)^(1/2)-1)*100,6)+100,""))) ->  | E45: =IF(C45="","",NETWORKDAYS($B$4,C45,Feriados!$A$2:$A$10000)-1) ->  | F45: =IF(C45="","",VLOOKUP(C45,'DI Futuro Projetado'!B:G,6,FALSE)) ->  | G45: =IF(C45="","",(((VLOOKUP(C45,'VNA IPCA Projetado'!A:B,2,FALSE)/VLOOKUP($B$4,'VNA IPCA Projetado'!A:B,2,FALSE))^(252/E45))-1)*100) ->  | I45: =IF(C45="","",(VLOOKUP(C45,'VNA IPCA Projetado'!A:B,2,FALSE))*D45/100) -> 
A46: 2041-02-15 | C46: =IF(EDATE(A45,6)<=WORKDAY(WORKDAY($B$5,-1,Feriados!$A$2:$A$10000),1,Feriados!$A$2:$A$10000),WORKDAY(WORKDAY(EDATE(A45,6),-1,Feriados!$A$2:$A$10000),1,Feriados!$A$2:$A$10000),"") ->  | D46: =IF(C46="","",IF(C46<$B$5,TRUNC(((1+$B$6)^(1/2)-1)*100,6),IF(C46=WORKDAY(WORKDAY($B$5,-1,Feriados!$A$2:$A$10000),1,Feriados!$A$2:$A$10000),TRUNC(((1+$B$6)^(1/2)-1)*100,6)+100,""))) ->  | E46: =IF(C46="","",NETWORKDAYS($B$4,C46,Feriados!$A$2:$A$10000)-1) ->  | F46: =IF(C46="","",VLOOKUP(C46,'DI Futuro Projetado'!B:G,6,FALSE)) ->  | G46: =IF(C46="","",(((VLOOKUP(C46,'VNA IPCA Projetado'!A:B,2,FALSE)/VLOOKUP($B$4,'VNA IPCA Projetado'!A:B,2,FALSE))^(252/E46))-1)*100) ->  | I46: =IF(C46="","",(VLOOKUP(C46,'VNA IPCA Projetado'!A:B,2,FALSE))*D46/100) -> 
A47: 2041-08-15 | C47: =IF(EDATE(A46,6)<=WORKDAY(WORKDAY($B$5,-1,Feriados!$A$2:$A$10000),1,Feriados!$A$2:$A$10000),WORKDAY(WORKDAY(EDATE(A46,6),-1,Feriados!$A$2:$A$10000),1,Feriados!$A$2:$A$10000),"") ->  | D47: =IF(C47="","",IF(C47<$B$5,TRUNC(((1+$B$6)^(1/2)-1)*100,6),IF(C47=WORKDAY(WORKDAY($B$5,-1,Feriados!$A$2:$A$10000),1,Feriados!$A$2:$A$10000),TRUNC(((1+$B$6)^(1/2)-1)*100,6)+100,""))) ->  | E47: =IF(C47="","",NETWORKDAYS($B$4,C47,Feriados!$A$2:$A$10000)-1) ->  | F47: =IF(C47="","",VLOOKUP(C47,'DI Futuro Projetado'!B:G,6,FALSE)) ->  | G47: =IF(C47="","",(((VLOOKUP(C47,'VNA IPCA Projetado'!A:B,2,FALSE)/VLOOKUP($B$4,'VNA IPCA Projetado'!A:B,2,FALSE))^(252/E47))-1)*100) ->  | I47: =IF(C47="","",(VLOOKUP(C47,'VNA IPCA Projetado'!A:B,2,FALSE))*D47/100) -> 
A48: 2042-02-15 | C48: =IF(EDATE(A47,6)<=WORKDAY(WORKDAY($B$5,-1,Feriados!$A$2:$A$10000),1,Feriados!$A$2:$A$10000),WORKDAY(WORKDAY(EDATE(A47,6),-1,Feriados!$A$2:$A$10000),1,Feriados!$A$2:$A$10000),"") ->  | D48: =IF(C48="","",IF(C48<$B$5,TRUNC(((1+$B$6)^(1/2)-1)*100,6),IF(C48=WORKDAY(WORKDAY($B$5,-1,Feriados!$A$2:$A$10000),1,Feriados!$A$2:$A$10000),TRUNC(((1+$B$6)^(1/2)-1)*100,6)+100,""))) ->  | E48: =IF(C48="","",NETWORKDAYS($B$4,C48,Feriados!$A$2:$A$10000)-1) ->  | F48: =IF(C48="","",VLOOKUP(C48,'DI Futuro Projetado'!B:G,6,FALSE)) ->  | G48: =IF(C48="","",(((VLOOKUP(C48,'VNA IPCA Projetado'!A:B,2,FALSE)/VLOOKUP($B$4,'VNA IPCA Projetado'!A:B,2,FALSE))^(252/E48))-1)*100) ->  | I48: =IF(C48="","",(VLOOKUP(C48,'VNA IPCA Projetado'!A:B,2,FALSE))*D48/100) -> 
A49: 2042-08-15 | C49: =IF(EDATE(A48,6)<=WORKDAY(WORKDAY($B$5,-1,Feriados!$A$2:$A$10000),1,Feriados!$A$2:$A$10000),WORKDAY(WORKDAY(EDATE(A48,6),-1,Feriados!$A$2:$A$10000),1,Feriados!$A$2:$A$10000),"") ->  | D49: =IF(C49="","",IF(C49<$B$5,TRUNC(((1+$B$6)^(1/2)-1)*100,6),IF(C49=WORKDAY(WORKDAY($B$5,-1,Feriados!$A$2:$A$10000),1,Feriados!$A$2:$A$10000),TRUNC(((1+$B$6)^(1/2)-1)*100,6)+100,""))) ->  | E49: =IF(C49="","",NETWORKDAYS($B$4,C49,Feriados!$A$2:$A$10000)-1) ->  | F49: =IF(C49="","",VLOOKUP(C49,'DI Futuro Projetado'!B:G,6,FALSE)) ->  | G49: =IF(C49="","",(((VLOOKUP(C49,'VNA IPCA Projetado'!A:B,2,FALSE)/VLOOKUP($B$4,'VNA IPCA Projetado'!A:B,2,FALSE))^(252/E49))-1)*100) ->  | I49: =IF(C49="","",(VLOOKUP(C49,'VNA IPCA Projetado'!A:B,2,FALSE))*D49/100) -> 
A50: 2043-02-15 | C50: =IF(EDATE(A49,6)<=WORKDAY(WORKDAY($B$5,-1,Feriados!$A$2:$A$10000),1,Feriados!$A$2:$A$10000),WORKDAY(WORKDAY(EDATE(A49,6),-1,Feriados!$A$2:$A$10000),1,Feriados!$A$2:$A$10000),"") ->  | D50: =IF(C50="","",IF(C50<$B$5,TRUNC(((1+$B$6)^(1/2)-1)*100,6),IF(C50=WORKDAY(WORKDAY($B$5,-1,Feriados!$A$2:$A$10000),1,Feriados!$A$2:$A$10000),TRUNC(((1+$B$6)^(1/2)-1)*100,6)+100,""))) ->  | E50: =IF(C50="","",NETWORKDAYS($B$4,C50,Feriados!$A$2:$A$10000)-1) ->  | F50: =IF(C50="","",VLOOKUP(C50,'DI Futuro Projetado'!B:G,6,FALSE)) ->  | G50: =IF(C50="","",(((VLOOKUP(C50,'VNA IPCA Projetado'!A:B,2,FALSE)/VLOOKUP($B$4,'VNA IPCA Projetado'!A:B,2,FALSE))^(252/E50))-1)*100) ->  | I50: =IF(C50="","",(VLOOKUP(C50,'VNA IPCA Projetado'!A:B,2,FALSE))*D50/100) -> 
A51: 2043-08-15 | C51: =IF(EDATE(A50,6)<=WORKDAY(WORKDAY($B$5,-1,Feriados!$A$2:$A$10000),1,Feriados!$A$2:$A$10000),WORKDAY(WORKDAY(EDATE(A50,6),-1,Feriados!$A$2:$A$10000),1,Feriados!$A$2:$A$10000),"") ->  | D51: =IF(C51="","",IF(C51<$B$5,TRUNC(((1+$B$6)^(1/2)-1)*100,6),IF(C51=WORKDAY(WORKDAY($B$5,-1,Feriados!$A$2:$A$10000),1,Feriados!$A$2:$A$10000),TRUNC(((1+$B$6)^(1/2)-1)*100,6)+100,""))) ->  | E51: =IF(C51="","",NETWORKDAYS($B$4,C51,Feriados!$A$2:$A$10000)-1) ->  | F51: =IF(C51="","",VLOOKUP(C51,'DI Futuro Projetado'!B:G,6,FALSE)) ->  | G51: =IF(C51="","",(((VLOOKUP(C51,'VNA IPCA Projetado'!A:B,2,FALSE)/VLOOKUP($B$4,'VNA IPCA Projetado'!A:B,2,FALSE))^(252/E51))-1)*100) ->  | I51: =IF(C51="","",(VLOOKUP(C51,'VNA IPCA Projetado'!A:B,2,FALSE))*D51/100) -> 
A52: 2044-02-15 | C52: =IF(EDATE(A51,6)<=WORKDAY(WORKDAY($B$5,-1,Feriados!$A$2:$A$10000),1,Feriados!$A$2:$A$10000),WORKDAY(WORKDAY(EDATE(A51,6),-1,Feriados!$A$2:$A$10000),1,Feriados!$A$2:$A$10000),"") ->  | D52: =IF(C52="","",IF(C52<$B$5,TRUNC(((1+$B$6)^(1/2)-1)*100,6),IF(C52=WORKDAY(WORKDAY($B$5,-1,Feriados!$A$2:$A$10000),1,Feriados!$A$2:$A$10000),TRUNC(((1+$B$6)^(1/2)-1)*100,6)+100,""))) ->  | E52: =IF(C52="","",NETWORKDAYS($B$4,C52,Feriados!$A$2:$A$10000)-1) ->  | F52: =IF(C52="","",VLOOKUP(C52,'DI Futuro Projetado'!B:G,6,FALSE)) ->  | G52: =IF(C52="","",(((VLOOKUP(C52,'VNA IPCA Projetado'!A:B,2,FALSE)/VLOOKUP($B$4,'VNA IPCA Projetado'!A:B,2,FALSE))^(252/E52))-1)*100) ->  | I52: =IF(C52="","",(VLOOKUP(C52,'VNA IPCA Projetado'!A:B,2,FALSE))*D52/100) -> 
A53: 2044-08-15 | C53: =IF(EDATE(A52,6)<=WORKDAY(WORKDAY($B$5,-1,Feriados!$A$2:$A$10000),1,Feriados!$A$2:$A$10000),WORKDAY(WORKDAY(EDATE(A52,6),-1,Feriados!$A$2:$A$10000),1,Feriados!$A$2:$A$10000),"") ->  | D53: =IF(C53="","",IF(C53<$B$5,TRUNC(((1+$B$6)^(1/2)-1)*100,6),IF(C53=WORKDAY(WORKDAY($B$5,-1,Feriados!$A$2:$A$10000),1,Feriados!$A$2:$A$10000),TRUNC(((1+$B$6)^(1/2)-1)*100,6)+100,""))) ->  | E53: =IF(C53="","",NETWORKDAYS($B$4,C53,Feriados!$A$2:$A$10000)-1) ->  | F53: =IF(C53="","",VLOOKUP(C53,'DI Futuro Projetado'!B:G,6,FALSE)) ->  | G53: =IF(C53="","",(((VLOOKUP(C53,'VNA IPCA Projetado'!A:B,2,FALSE)/VLOOKUP($B$4,'VNA IPCA Projetado'!A:B,2,FALSE))^(252/E53))-1)*100) ->  | I53: =IF(C53="","",(VLOOKUP(C53,'VNA IPCA Projetado'!A:B,2,FALSE))*D53/100) -> 
A54: 2045-02-15 | C54: =IF(EDATE(A53,6)<=WORKDAY(WORKDAY($B$5,-1,Feriados!$A$2:$A$10000),1,Feriados!$A$2:$A$10000),WORKDAY(WORKDAY(EDATE(A53,6),-1,Feriados!$A$2:$A$10000),1,Feriados!$A$2:$A$10000),"") ->  | D54: =IF(C54="","",IF(C54<$B$5,TRUNC(((1+$B$6)^(1/2)-1)*100,6),IF(C54=WORKDAY(WORKDAY($B$5,-1,Feriados!$A$2:$A$10000),1,Feriados!$A$2:$A$10000),TRUNC(((1+$B$6)^(1/2)-1)*100,6)+100,""))) ->  | E54: =IF(C54="","",NETWORKDAYS($B$4,C54,Feriados!$A$2:$A$10000)-1) ->  | F54: =IF(C54="","",VLOOKUP(C54,'DI Futuro Projetado'!B:G,6,FALSE)) ->  | G54: =IF(C54="","",(((VLOOKUP(C54,'VNA IPCA Projetado'!A:B,2,FALSE)/VLOOKUP($B$4,'VNA IPCA Projetado'!A:B,2,FALSE))^(252/E54))-1)*100) ->  | I54: =IF(C54="","",(VLOOKUP(C54,'VNA IPCA Projetado'!A:B,2,FALSE))*D54/100) -> 
A55: 2045-08-15 | C55: =IF(EDATE(A54,6)<=WORKDAY(WORKDAY($B$5,-1,Feriados!$A$2:$A$10000),1,Feriados!$A$2:$A$10000),WORKDAY(WORKDAY(EDATE(A54,6),-1,Feriados!$A$2:$A$10000),1,Feriados!$A$2:$A$10000),"") ->  | D55: =IF(C55="","",IF(C55<$B$5,TRUNC(((1+$B$6)^(1/2)-1)*100,6),IF(C55=WORKDAY(WORKDAY($B$5,-1,Feriados!$A$2:$A$10000),1,Feriados!$A$2:$A$10000),TRUNC(((1+$B$6)^(1/2)-1)*100,6)+100,""))) ->  | E55: =IF(C55="","",NETWORKDAYS($B$4,C55,Feriados!$A$2:$A$10000)-1) ->  | F55: =IF(C55="","",VLOOKUP(C55,'DI Futuro Projetado'!B:G,6,FALSE)) ->  | G55: =IF(C55="","",(((VLOOKUP(C55,'VNA IPCA Projetado'!A:B,2,FALSE)/VLOOKUP($B$4,'VNA IPCA Projetado'!A:B,2,FALSE))^(252/E55))-1)*100) ->  | I55: =IF(C55="","",(VLOOKUP(C55,'VNA IPCA Projetado'!A:B,2,FALSE))*D55/100) -> 
A56: 2046-02-15 | C56: =IF(EDATE(A55,6)<=WORKDAY(WORKDAY($B$5,-1,Feriados!$A$2:$A$10000),1,Feriados!$A$2:$A$10000),WORKDAY(WORKDAY(EDATE(A55,6),-1,Feriados!$A$2:$A$10000),1,Feriados!$A$2:$A$10000),"") ->  | D56: =IF(C56="","",IF(C56<$B$5,TRUNC(((1+$B$6)^(1/2)-1)*100,6),IF(C56=WORKDAY(WORKDAY($B$5,-1,Feriados!$A$2:$A$10000),1,Feriados!$A$2:$A$10000),TRUNC(((1+$B$6)^(1/2)-1)*100,6)+100,""))) ->  | E56: =IF(C56="","",NETWORKDAYS($B$4,C56,Feriados!$A$2:$A$10000)-1) ->  | F56: =IF(C56="","",VLOOKUP(C56,'DI Futuro Projetado'!B:G,6,FALSE)) ->  | G56: =IF(C56="","",(((VLOOKUP(C56,'VNA IPCA Projetado'!A:B,2,FALSE)/VLOOKUP($B$4,'VNA IPCA Projetado'!A:B,2,FALSE))^(252/E56))-1)*100) ->  | I56: =IF(C56="","",(VLOOKUP(C56,'VNA IPCA Projetado'!A:B,2,FALSE))*D56/100) -> 
A57: 2046-08-15 | C57: =IF(EDATE(A56,6)<=WORKDAY(WORKDAY($B$5,-1,Feriados!$A$2:$A$10000),1,Feriados!$A$2:$A$10000),WORKDAY(WORKDAY(EDATE(A56,6),-1,Feriados!$A$2:$A$10000),1,Feriados!$A$2:$A$10000),"") ->  | D57: =IF(C57="","",IF(C57<$B$5,TRUNC(((1+$B$6)^(1/2)-1)*100,6),IF(C57=WORKDAY(WORKDAY($B$5,-1,Feriados!$A$2:$A$10000),1,Feriados!$A$2:$A$10000),TRUNC(((1+$B$6)^(1/2)-1)*100,6)+100,""))) ->  | E57: =IF(C57="","",NETWORKDAYS($B$4,C57,Feriados!$A$2:$A$10000)-1) ->  | F57: =IF(C57="","",VLOOKUP(C57,'DI Futuro Projetado'!B:G,6,FALSE)) ->  | G57: =IF(C57="","",(((VLOOKUP(C57,'VNA IPCA Projetado'!A:B,2,FALSE)/VLOOKUP($B$4,'VNA IPCA Projetado'!A:B,2,FALSE))^(252/E57))-1)*100) ->  | I57: =IF(C57="","",(VLOOKUP(C57,'VNA IPCA Projetado'!A:B,2,FALSE))*D57/100) -> 
A58: 2047-02-15 | C58: =IF(EDATE(A57,6)<=WORKDAY(WORKDAY($B$5,-1,Feriados!$A$2:$A$10000),1,Feriados!$A$2:$A$10000),WORKDAY(WORKDAY(EDATE(A57,6),-1,Feriados!$A$2:$A$10000),1,Feriados!$A$2:$A$10000),"") ->  | D58: =IF(C58="","",IF(C58<$B$5,TRUNC(((1+$B$6)^(1/2)-1)*100,6),IF(C58=WORKDAY(WORKDAY($B$5,-1,Feriados!$A$2:$A$10000),1,Feriados!$A$2:$A$10000),TRUNC(((1+$B$6)^(1/2)-1)*100,6)+100,""))) ->  | E58: =IF(C58="","",NETWORKDAYS($B$4,C58,Feriados!$A$2:$A$10000)-1) ->  | F58: =IF(C58="","",VLOOKUP(C58,'DI Futuro Projetado'!B:G,6,FALSE)) ->  | G58: =IF(C58="","",(((VLOOKUP(C58,'VNA IPCA Projetado'!A:B,2,FALSE)/VLOOKUP($B$4,'VNA IPCA Projetado'!A:B,2,FALSE))^(252/E58))-1)*100) ->  | I58: =IF(C58="","",(VLOOKUP(C58,'VNA IPCA Projetado'!A:B,2,FALSE))*D58/100) -> 
A59: 2047-08-15 | C59: =IF(EDATE(A58,6)<=WORKDAY(WORKDAY($B$5,-1,Feriados!$A$2:$A$10000),1,Feriados!$A$2:$A$10000),WORKDAY(WORKDAY(EDATE(A58,6),-1,Feriados!$A$2:$A$10000),1,Feriados!$A$2:$A$10000),"") ->  | D59: =IF(C59="","",IF(C59<$B$5,TRUNC(((1+$B$6)^(1/2)-1)*100,6),IF(C59=WORKDAY(WORKDAY($B$5,-1,Feriados!$A$2:$A$10000),1,Feriados!$A$2:$A$10000),TRUNC(((1+$B$6)^(1/2)-1)*100,6)+100,""))) ->  | E59: =IF(C59="","",NETWORKDAYS($B$4,C59,Feriados!$A$2:$A$10000)-1) ->  | F59: =IF(C59="","",VLOOKUP(C59,'DI Futuro Projetado'!B:G,6,FALSE)) ->  | G59: =IF(C59="","",(((VLOOKUP(C59,'VNA IPCA Projetado'!A:B,2,FALSE)/VLOOKUP($B$4,'VNA IPCA Projetado'!A:B,2,FALSE))^(252/E59))-1)*100) ->  | I59: =IF(C59="","",(VLOOKUP(C59,'VNA IPCA Projetado'!A:B,2,FALSE))*D59/100) -> 
A60: 2048-02-15 | C60: =IF(EDATE(A59,6)<=WORKDAY(WORKDAY($B$5,-1,Feriados!$A$2:$A$10000),1,Feriados!$A$2:$A$10000),WORKDAY(WORKDAY(EDATE(A59,6),-1,Feriados!$A$2:$A$10000),1,Feriados!$A$2:$A$10000),"") ->  | D60: =IF(C60="","",IF(C60<$B$5,TRUNC(((1+$B$6)^(1/2)-1)*100,6),IF(C60=WORKDAY(WORKDAY($B$5,-1,Feriados!$A$2:$A$10000),1,Feriados!$A$2:$A$10000),TRUNC(((1+$B$6)^(1/2)-1)*100,6)+100,""))) ->  | E60: =IF(C60="","",NETWORKDAYS($B$4,C60,Feriados!$A$2:$A$10000)-1) ->  | F60: =IF(C60="","",VLOOKUP(C60,'DI Futuro Projetado'!B:G,6,FALSE)) ->  | G60: =IF(C60="","",(((VLOOKUP(C60,'VNA IPCA Projetado'!A:B,2,FALSE)/VLOOKUP($B$4,'VNA IPCA Projetado'!A:B,2,FALSE))^(252/E60))-1)*100) ->  | I60: =IF(C60="","",(VLOOKUP(C60,'VNA IPCA Projetado'!A:B,2,FALSE))*D60/100) -> 
A61: 2048-08-15 | C61: =IF(EDATE(A60,6)<=WORKDAY(WORKDAY($B$5,-1,Feriados!$A$2:$A$10000),1,Feriados!$A$2:$A$10000),WORKDAY(WORKDAY(EDATE(A60,6),-1,Feriados!$A$2:$A$10000),1,Feriados!$A$2:$A$10000),"") ->  | D61: =IF(C61="","",IF(C61<$B$5,TRUNC(((1+$B$6)^(1/2)-1)*100,6),IF(C61=WORKDAY(WORKDAY($B$5,-1,Feriados!$A$2:$A$10000),1,Feriados!$A$2:$A$10000),TRUNC(((1+$B$6)^(1/2)-1)*100,6)+100,""))) ->  | E61: =IF(C61="","",NETWORKDAYS($B$4,C61,Feriados!$A$2:$A$10000)-1) ->  | F61: =IF(C61="","",VLOOKUP(C61,'DI Futuro Projetado'!B:G,6,FALSE)) ->  | G61: =IF(C61="","",(((VLOOKUP(C61,'VNA IPCA Projetado'!A:B,2,FALSE)/VLOOKUP($B$4,'VNA IPCA Projetado'!A:B,2,FALSE))^(252/E61))-1)*100) ->  | I61: =IF(C61="","",(VLOOKUP(C61,'VNA IPCA Projetado'!A:B,2,FALSE))*D61/100) -> 
A62: 2049-02-15 | C62: =IF(EDATE(A61,6)<=WORKDAY(WORKDAY($B$5,-1,Feriados!$A$2:$A$10000),1,Feriados!$A$2:$A$10000),WORKDAY(WORKDAY(EDATE(A61,6),-1,Feriados!$A$2:$A$10000),1,Feriados!$A$2:$A$10000),"") ->  | D62: =IF(C62="","",IF(C62<$B$5,TRUNC(((1+$B$6)^(1/2)-1)*100,6),IF(C62=WORKDAY(WORKDAY($B$5,-1,Feriados!$A$2:$A$10000),1,Feriados!$A$2:$A$10000),TRUNC(((1+$B$6)^(1/2)-1)*100,6)+100,""))) ->  | E62: =IF(C62="","",NETWORKDAYS($B$4,C62,Feriados!$A$2:$A$10000)-1) ->  | F62: =IF(C62="","",VLOOKUP(C62,'DI Futuro Projetado'!B:G,6,FALSE)) ->  | G62: =IF(C62="","",(((VLOOKUP(C62,'VNA IPCA Projetado'!A:B,2,FALSE)/VLOOKUP($B$4,'VNA IPCA Projetado'!A:B,2,FALSE))^(252/E62))-1)*100) ->  | I62: =IF(C62="","",(VLOOKUP(C62,'VNA IPCA Projetado'!A:B,2,FALSE))*D62/100) -> 
A63: 2049-08-15 | C63: =IF(EDATE(A62,6)<=WORKDAY(WORKDAY($B$5,-1,Feriados!$A$2:$A$10000),1,Feriados!$A$2:$A$10000),WORKDAY(WORKDAY(EDATE(A62,6),-1,Feriados!$A$2:$A$10000),1,Feriados!$A$2:$A$10000),"") ->  | D63: =IF(C63="","",IF(C63<$B$5,TRUNC(((1+$B$6)^(1/2)-1)*100,6),IF(C63=WORKDAY(WORKDAY($B$5,-1,Feriados!$A$2:$A$10000),1,Feriados!$A$2:$A$10000),TRUNC(((1+$B$6)^(1/2)-1)*100,6)+100,""))) ->  | E63: =IF(C63="","",NETWORKDAYS($B$4,C63,Feriados!$A$2:$A$10000)-1) ->  | F63: =IF(C63="","",VLOOKUP(C63,'DI Futuro Projetado'!B:G,6,FALSE)) ->  | G63: =IF(C63="","",(((VLOOKUP(C63,'VNA IPCA Projetado'!A:B,2,FALSE)/VLOOKUP($B$4,'VNA IPCA Projetado'!A:B,2,FALSE))^(252/E63))-1)*100) ->  | I63: =IF(C63="","",(VLOOKUP(C63,'VNA IPCA Projetado'!A:B,2,FALSE))*D63/100) -> 
A64: 2050-02-15 | C64: =IF(EDATE(A63,6)<=WORKDAY(WORKDAY($B$5,-1,Feriados!$A$2:$A$10000),1,Feriados!$A$2:$A$10000),WORKDAY(WORKDAY(EDATE(A63,6),-1,Feriados!$A$2:$A$10000),1,Feriados!$A$2:$A$10000),"") ->  | D64: =IF(C64="","",IF(C64<$B$5,TRUNC(((1+$B$6)^(1/2)-1)*100,6),IF(C64=WORKDAY(WORKDAY($B$5,-1,Feriados!$A$2:$A$10000),1,Feriados!$A$2:$A$10000),TRUNC(((1+$B$6)^(1/2)-1)*100,6)+100,""))) ->  | E64: =IF(C64="","",NETWORKDAYS($B$4,C64,Feriados!$A$2:$A$10000)-1) ->  | F64: =IF(C64="","",VLOOKUP(C64,'DI Futuro Projetado'!B:G,6,FALSE)) ->  | G64: =IF(C64="","",(((VLOOKUP(C64,'VNA IPCA Projetado'!A:B,2,FALSE)/VLOOKUP($B$4,'VNA IPCA Projetado'!A:B,2,FALSE))^(252/E64))-1)*100) ->  | I64: =IF(C64="","",(VLOOKUP(C64,'VNA IPCA Projetado'!A:B,2,FALSE))*D64/100) -> 
A65: 2050-08-15 | C65: =IF(EDATE(A64,6)<=WORKDAY(WORKDAY($B$5,-1,Feriados!$A$2:$A$10000),1,Feriados!$A$2:$A$10000),WORKDAY(WORKDAY(EDATE(A64,6),-1,Feriados!$A$2:$A$10000),1,Feriados!$A$2:$A$10000),"") ->  | D65: =IF(C65="","",IF(C65<$B$5,TRUNC(((1+$B$6)^(1/2)-1)*100,6),IF(C65=WORKDAY(WORKDAY($B$5,-1,Feriados!$A$2:$A$10000),1,Feriados!$A$2:$A$10000),TRUNC(((1+$B$6)^(1/2)-1)*100,6)+100,""))) ->  | E65: =IF(C65="","",NETWORKDAYS($B$4,C65,Feriados!$A$2:$A$10000)-1) ->  | F65: =IF(C65="","",VLOOKUP(C65,'DI Futuro Projetado'!B:G,6,FALSE)) ->  | G65: =IF(C65="","",(((VLOOKUP(C65,'VNA IPCA Projetado'!A:B,2,FALSE)/VLOOKUP($B$4,'VNA IPCA Projetado'!A:B,2,FALSE))^(252/E65))-1)*100) ->  | I65: =IF(C65="","",(VLOOKUP(C65,'VNA IPCA Projetado'!A:B,2,FALSE))*D65/100) -> 
A66: 2051-02-15 | C66: =IF(EDATE(A65,6)<=WORKDAY(WORKDAY($B$5,-1,Feriados!$A$2:$A$10000),1,Feriados!$A$2:$A$10000),WORKDAY(WORKDAY(EDATE(A65,6),-1,Feriados!$A$2:$A$10000),1,Feriados!$A$2:$A$10000),"") ->  | D66: =IF(C66="","",IF(C66<$B$5,TRUNC(((1+$B$6)^(1/2)-1)*100,6),IF(C66=WORKDAY(WORKDAY($B$5,-1,Feriados!$A$2:$A$10000),1,Feriados!$A$2:$A$10000),TRUNC(((1+$B$6)^(1/2)-1)*100,6)+100,""))) ->  | E66: =IF(C66="","",NETWORKDAYS($B$4,C66,Feriados!$A$2:$A$10000)-1) ->  | F66: =IF(C66="","",VLOOKUP(C66,'DI Futuro Projetado'!B:G,6,FALSE)) ->  | G66: =IF(C66="","",(((VLOOKUP(C66,'VNA IPCA Projetado'!A:B,2,FALSE)/VLOOKUP($B$4,'VNA IPCA Projetado'!A:B,2,FALSE))^(252/E66))-1)*100) ->  | I66: =IF(C66="","",(VLOOKUP(C66,'VNA IPCA Projetado'!A:B,2,FALSE))*D66/100) -> 
A67: 2051-08-15 | C67: =IF(EDATE(A66,6)<=WORKDAY(WORKDAY($B$5,-1,Feriados!$A$2:$A$10000),1,Feriados!$A$2:$A$10000),WORKDAY(WORKDAY(EDATE(A66,6),-1,Feriados!$A$2:$A$10000),1,Feriados!$A$2:$A$10000),"") ->  | D67: =IF(C67="","",IF(C67<$B$5,TRUNC(((1+$B$6)^(1/2)-1)*100,6),IF(C67=WORKDAY(WORKDAY($B$5,-1,Feriados!$A$2:$A$10000),1,Feriados!$A$2:$A$10000),TRUNC(((1+$B$6)^(1/2)-1)*100,6)+100,""))) ->  | E67: =IF(C67="","",NETWORKDAYS($B$4,C67,Feriados!$A$2:$A$10000)-1) ->  | F67: =IF(C67="","",VLOOKUP(C67,'DI Futuro Projetado'!B:G,6,FALSE)) ->  | G67: =IF(C67="","",(((VLOOKUP(C67,'VNA IPCA Projetado'!A:B,2,FALSE)/VLOOKUP($B$4,'VNA IPCA Projetado'!A:B,2,FALSE))^(252/E67))-1)*100) ->  | I67: =IF(C67="","",(VLOOKUP(C67,'VNA IPCA Projetado'!A:B,2,FALSE))*D67/100) -> 
A68: 2052-02-15 | C68: =IF(EDATE(A67,6)<=WORKDAY(WORKDAY($B$5,-1,Feriados!$A$2:$A$10000),1,Feriados!$A$2:$A$10000),WORKDAY(WORKDAY(EDATE(A67,6),-1,Feriados!$A$2:$A$10000),1,Feriados!$A$2:$A$10000),"") ->  | D68: =IF(C68="","",IF(C68<$B$5,TRUNC(((1+$B$6)^(1/2)-1)*100,6),IF(C68=WORKDAY(WORKDAY($B$5,-1,Feriados!$A$2:$A$10000),1,Feriados!$A$2:$A$10000),TRUNC(((1+$B$6)^(1/2)-1)*100,6)+100,""))) ->  | E68: =IF(C68="","",NETWORKDAYS($B$4,C68,Feriados!$A$2:$A$10000)-1) ->  | F68: =IF(C68="","",VLOOKUP(C68,'DI Futuro Projetado'!B:G,6,FALSE)) ->  | G68: =IF(C68="","",(((VLOOKUP(C68,'VNA IPCA Projetado'!A:B,2,FALSE)/VLOOKUP($B$4,'VNA IPCA Projetado'!A:B,2,FALSE))^(252/E68))-1)*100) ->  | I68: =IF(C68="","",(VLOOKUP(C68,'VNA IPCA Projetado'!A:B,2,FALSE))*D68/100) -> 
A69: 2052-08-15 | C69: =IF(EDATE(A68,6)<=WORKDAY(WORKDAY($B$5,-1,Feriados!$A$2:$A$10000),1,Feriados!$A$2:$A$10000),WORKDAY(WORKDAY(EDATE(A68,6),-1,Feriados!$A$2:$A$10000),1,Feriados!$A$2:$A$10000),"") ->  | D69: =IF(C69="","",IF(C69<$B$5,TRUNC(((1+$B$6)^(1/2)-1)*100,6),IF(C69=WORKDAY(WORKDAY($B$5,-1,Feriados!$A$2:$A$10000),1,Feriados!$A$2:$A$10000),TRUNC(((1+$B$6)^(1/2)-1)*100,6)+100,""))) ->  | E69: =IF(C69="","",NETWORKDAYS($B$4,C69,Feriados!$A$2:$A$10000)-1) ->  | F69: =IF(C69="","",VLOOKUP(C69,'DI Futuro Projetado'!B:G,6,FALSE)) ->  | G69: =IF(C69="","",(((VLOOKUP(C69,'VNA IPCA Projetado'!A:B,2,FALSE)/VLOOKUP($B$4,'VNA IPCA Projetado'!A:B,2,FALSE))^(252/E69))-1)*100) ->  | I69: =IF(C69="","",(VLOOKUP(C69,'VNA IPCA Projetado'!A:B,2,FALSE))*D69/100) -> 
A70: 2053-02-15 | C70: =IF(EDATE(A69,6)<=WORKDAY(WORKDAY($B$5,-1,Feriados!$A$2:$A$10000),1,Feriados!$A$2:$A$10000),WORKDAY(WORKDAY(EDATE(A69,6),-1,Feriados!$A$2:$A$10000),1,Feriados!$A$2:$A$10000),"") ->  | D70: =IF(C70="","",IF(C70<$B$5,TRUNC(((1+$B$6)^(1/2)-1)*100,6),IF(C70=WORKDAY(WORKDAY($B$5,-1,Feriados!$A$2:$A$10000),1,Feriados!$A$2:$A$10000),TRUNC(((1+$B$6)^(1/2)-1)*100,6)+100,""))) ->  | E70: =IF(C70="","",NETWORKDAYS($B$4,C70,Feriados!$A$2:$A$10000)-1) ->  | F70: =IF(C70="","",VLOOKUP(C70,'DI Futuro Projetado'!B:G,6,FALSE)) ->  | G70: =IF(C70="","",(((VLOOKUP(C70,'VNA IPCA Projetado'!A:B,2,FALSE)/VLOOKUP($B$4,'VNA IPCA Projetado'!A:B,2,FALSE))^(252/E70))-1)*100) ->  | I70: =IF(C70="","",(VLOOKUP(C70,'VNA IPCA Projetado'!A:B,2,FALSE))*D70/100) -> 
A71: 2053-08-15 | C71: =IF(EDATE(A70,6)<=WORKDAY(WORKDAY($B$5,-1,Feriados!$A$2:$A$10000),1,Feriados!$A$2:$A$10000),WORKDAY(WORKDAY(EDATE(A70,6),-1,Feriados!$A$2:$A$10000),1,Feriados!$A$2:$A$10000),"") ->  | D71: =IF(C71="","",IF(C71<$B$5,TRUNC(((1+$B$6)^(1/2)-1)*100,6),IF(C71=WORKDAY(WORKDAY($B$5,-1,Feriados!$A$2:$A$10000),1,Feriados!$A$2:$A$10000),TRUNC(((1+$B$6)^(1/2)-1)*100,6)+100,""))) ->  | E71: =IF(C71="","",NETWORKDAYS($B$4,C71,Feriados!$A$2:$A$10000)-1) ->  | F71: =IF(C71="","",VLOOKUP(C71,'DI Futuro Projetado'!B:G,6,FALSE)) ->  | G71: =IF(C71="","",(((VLOOKUP(C71,'VNA IPCA Projetado'!A:B,2,FALSE)/VLOOKUP($B$4,'VNA IPCA Projetado'!A:B,2,FALSE))^(252/E71))-1)*100) ->  | I71: =IF(C71="","",(VLOOKUP(C71,'VNA IPCA Projetado'!A:B,2,FALSE))*D71/100) -> 
A72: 2054-02-15 | C72: =IF(EDATE(A71,6)<=WORKDAY(WORKDAY($B$5,-1,Feriados!$A$2:$A$10000),1,Feriados!$A$2:$A$10000),WORKDAY(WORKDAY(EDATE(A71,6),-1,Feriados!$A$2:$A$10000),1,Feriados!$A$2:$A$10000),"") ->  | D72: =IF(C72="","",IF(C72<$B$5,TRUNC(((1+$B$6)^(1/2)-1)*100,6),IF(C72=WORKDAY(WORKDAY($B$5,-1,Feriados!$A$2:$A$10000),1,Feriados!$A$2:$A$10000),TRUNC(((1+$B$6)^(1/2)-1)*100,6)+100,""))) ->  | E72: =IF(C72="","",NETWORKDAYS($B$4,C72,Feriados!$A$2:$A$10000)-1) ->  | F72: =IF(C72="","",VLOOKUP(C72,'DI Futuro Projetado'!B:G,6,FALSE)) ->  | G72: =IF(C72="","",(((VLOOKUP(C72,'VNA IPCA Projetado'!A:B,2,FALSE)/VLOOKUP($B$4,'VNA IPCA Projetado'!A:B,2,FALSE))^(252/E72))-1)*100) ->  | I72: =IF(C72="","",(VLOOKUP(C72,'VNA IPCA Projetado'!A:B,2,FALSE))*D72/100) -> 
A73: 2054-08-15 | C73: =IF(EDATE(A72,6)<=WORKDAY(WORKDAY($B$5,-1,Feriados!$A$2:$A$10000),1,Feriados!$A$2:$A$10000),WORKDAY(WORKDAY(EDATE(A72,6),-1,Feriados!$A$2:$A$10000),1,Feriados!$A$2:$A$10000),"") ->  | D73: =IF(C73="","",IF(C73<$B$5,TRUNC(((1+$B$6)^(1/2)-1)*100,6),IF(C73=WORKDAY(WORKDAY($B$5,-1,Feriados!$A$2:$A$10000),1,Feriados!$A$2:$A$10000),TRUNC(((1+$B$6)^(1/2)-1)*100,6)+100,""))) ->  | E73: =IF(C73="","",NETWORKDAYS($B$4,C73,Feriados!$A$2:$A$10000)-1) ->  | F73: =IF(C73="","",VLOOKUP(C73,'DI Futuro Projetado'!B:G,6,FALSE)) ->  | G73: =IF(C73="","",(((VLOOKUP(C73,'VNA IPCA Projetado'!A:B,2,FALSE)/VLOOKUP($B$4,'VNA IPCA Projetado'!A:B,2,FALSE))^(252/E73))-1)*100) ->  | I73: =IF(C73="","",(VLOOKUP(C73,'VNA IPCA Projetado'!A:B,2,FALSE))*D73/100) -> 
A74: 2055-02-15 | C74: =IF(EDATE(A73,6)<=WORKDAY(WORKDAY($B$5,-1,Feriados!$A$2:$A$10000),1,Feriados!$A$2:$A$10000),WORKDAY(WORKDAY(EDATE(A73,6),-1,Feriados!$A$2:$A$10000),1,Feriados!$A$2:$A$10000),"") ->  | D74: =IF(C74="","",IF(C74<$B$5,TRUNC(((1+$B$6)^(1/2)-1)*100,6),IF(C74=WORKDAY(WORKDAY($B$5,-1,Feriados!$A$2:$A$10000),1,Feriados!$A$2:$A$10000),TRUNC(((1+$B$6)^(1/2)-1)*100,6)+100,""))) ->  | E74: =IF(C74="","",NETWORKDAYS($B$4,C74,Feriados!$A$2:$A$10000)-1) ->  | F74: =IF(C74="","",VLOOKUP(C74,'DI Futuro Projetado'!B:G,6,FALSE)) ->  | G74: =IF(C74="","",(((VLOOKUP(C74,'VNA IPCA Projetado'!A:B,2,FALSE)/VLOOKUP($B$4,'VNA IPCA Projetado'!A:B,2,FALSE))^(252/E74))-1)*100) ->  | I74: =IF(C74="","",(VLOOKUP(C74,'VNA IPCA Projetado'!A:B,2,FALSE))*D74/100) -> 
A75: 2055-08-15 | C75: =IF(EDATE(A74,6)<=WORKDAY(WORKDAY($B$5,-1,Feriados!$A$2:$A$10000),1,Feriados!$A$2:$A$10000),WORKDAY(WORKDAY(EDATE(A74,6),-1,Feriados!$A$2:$A$10000),1,Feriados!$A$2:$A$10000),"") ->  | D75: =IF(C75="","",IF(C75<$B$5,TRUNC(((1+$B$6)^(1/2)-1)*100,6),IF(C75=WORKDAY(WORKDAY($B$5,-1,Feriados!$A$2:$A$10000),1,Feriados!$A$2:$A$10000),TRUNC(((1+$B$6)^(1/2)-1)*100,6)+100,""))) ->  | E75: =IF(C75="","",NETWORKDAYS($B$4,C75,Feriados!$A$2:$A$10000)-1) ->  | F75: =IF(C75="","",VLOOKUP(C75,'DI Futuro Projetado'!B:G,6,FALSE)) ->  | G75: =IF(C75="","",(((VLOOKUP(C75,'VNA IPCA Projetado'!A:B,2,FALSE)/VLOOKUP($B$4,'VNA IPCA Projetado'!A:B,2,FALSE))^(252/E75))-1)*100) ->  | I75: =IF(C75="","",(VLOOKUP(C75,'VNA IPCA Projetado'!A:B,2,FALSE))*D75/100) -> 
A76: 2056-02-15 | C76: =IF(EDATE(A75,6)<=WORKDAY(WORKDAY($B$5,-1,Feriados!$A$2:$A$10000),1,Feriados!$A$2:$A$10000),WORKDAY(WORKDAY(EDATE(A75,6),-1,Feriados!$A$2:$A$10000),1,Feriados!$A$2:$A$10000),"") ->  | D76: =IF(C76="","",IF(C76<$B$5,TRUNC(((1+$B$6)^(1/2)-1)*100,6),IF(C76=WORKDAY(WORKDAY($B$5,-1,Feriados!$A$2:$A$10000),1,Feriados!$A$2:$A$10000),TRUNC(((1+$B$6)^(1/2)-1)*100,6)+100,""))) ->  | E76: =IF(C76="","",NETWORKDAYS($B$4,C76,Feriados!$A$2:$A$10000)-1) ->  | F76: =IF(C76="","",VLOOKUP(C76,'DI Futuro Projetado'!B:G,6,FALSE)) ->  | G76: =IF(C76="","",(((VLOOKUP(C76,'VNA IPCA Projetado'!A:B,2,FALSE)/VLOOKUP($B$4,'VNA IPCA Projetado'!A:B,2,FALSE))^(252/E76))-1)*100) ->  | I76: =IF(C76="","",(VLOOKUP(C76,'VNA IPCA Projetado'!A:B,2,FALSE))*D76/100) -> 
A77: =EDATE(A76,6) -> 2056-08-15 | B77: =IF(C77="","",B76+1) ->  | C77: =IF(EDATE(A76,6)<=WORKDAY(WORKDAY($B$5,-1,Feriados!$A$2:$A$10000),1,Feriados!$A$2:$A$10000),WORKDAY(WORKDAY(EDATE(A76,6),-1,Feriados!$A$2:$A$10000),1,Feriados!$A$2:$A$10000),"") ->  | D77: =IF(C77="","",IF(C77<$B$5,TRUNC(((1+$B$6)^(1/2)-1)*100,6),IF(C77=WORKDAY(WORKDAY($B$5,-1,Feriados!$A$2:$A$10000),1,Feriados!$A$2:$A$10000),TRUNC(((1+$B$6)^(1/2)-1)*100,6)+100,""))) ->  | E77: =IF(C77="","",NETWORKDAYS($B$4,C77,Feriados!$A$2:$A$10000)-1) ->  | F77: =IF(C77="","",VLOOKUP(C77,'DI Futuro Projetado'!B:G,6,FALSE)) ->  | G77: =IF(C77="","",(((VLOOKUP(C77,'VNA IPCA Projetado'!A:B,2,FALSE)/VLOOKUP($B$4,'VNA IPCA Projetado'!A:B,2,FALSE))^(252/E77))-1)*100) ->  | H77: =IF(C77="","",((1+F77/100)/(1+G77/100)-1)*100) ->  | I77: =IF(C77="","",(VLOOKUP(C77,'VNA IPCA Projetado'!A:B,2,FALSE))*D77/100) -> 
A78: 2057-02-15 | C78: =IF(EDATE(A77,6)<=WORKDAY(WORKDAY($B$5,-1,Feriados!$A$2:$A$10000),1,Feriados!$A$2:$A$10000),WORKDAY(WORKDAY(EDATE(A77,6),-1,Feriados!$A$2:$A$10000),1,Feriados!$A$2:$A$10000),"") ->  | D78: =IF(C78="","",IF(C78<$B$5,TRUNC(((1+$B$6)^(1/2)-1)*100,6),IF(C78=WORKDAY(WORKDAY($B$5,-1,Feriados!$A$2:$A$10000),1,Feriados!$A$2:$A$10000),TRUNC(((1+$B$6)^(1/2)-1)*100,6)+100,""))) ->  | E78: =IF(C78="","",NETWORKDAYS($B$4,C78,Feriados!$A$2:$A$10000)-1) ->  | F78: =IF(C78="","",VLOOKUP(C78,'DI Futuro Projetado'!B:G,6,FALSE)) ->  | G78: =IF(C78="","",(((VLOOKUP(C78,'VNA IPCA Projetado'!A:B,2,FALSE)/VLOOKUP($B$4,'VNA IPCA Projetado'!A:B,2,FALSE))^(252/E78))-1)*100) ->  | I78: =IF(C78="","",(VLOOKUP(C78,'VNA IPCA Projetado'!A:B,2,FALSE))*D78/100) -> 
A79: 2057-08-15 | C79: =IF(EDATE(A78,6)<=WORKDAY(WORKDAY($B$5,-1,Feriados!$A$2:$A$10000),1,Feriados!$A$2:$A$10000),WORKDAY(WORKDAY(EDATE(A78,6),-1,Feriados!$A$2:$A$10000),1,Feriados!$A$2:$A$10000),"") ->  | D79: =IF(C79="","",IF(C79<$B$5,TRUNC(((1+$B$6)^(1/2)-1)*100,6),IF(C79=WORKDAY(WORKDAY($B$5,-1,Feriados!$A$2:$A$10000),1,Feriados!$A$2:$A$10000),TRUNC(((1+$B$6)^(1/2)-1)*100,6)+100,""))) ->  | E79: =IF(C79="","",NETWORKDAYS($B$4,C79,Feriados!$A$2:$A$10000)-1) ->  | F79: =IF(C79="","",VLOOKUP(C79,'DI Futuro Projetado'!B:G,6,FALSE)) ->  | G79: =IF(C79="","",(((VLOOKUP(C79,'VNA IPCA Projetado'!A:B,2,FALSE)/VLOOKUP($B$4,'VNA IPCA Projetado'!A:B,2,FALSE))^(252/E79))-1)*100) ->  | I79: =IF(C79="","",(VLOOKUP(C79,'VNA IPCA Projetado'!A:B,2,FALSE))*D79/100) -> 
A80: 2058-02-15 | C80: =IF(EDATE(A79,6)<=WORKDAY(WORKDAY($B$5,-1,Feriados!$A$2:$A$10000),1,Feriados!$A$2:$A$10000),WORKDAY(WORKDAY(EDATE(A79,6),-1,Feriados!$A$2:$A$10000),1,Feriados!$A$2:$A$10000),"") ->  | D80: =IF(C80="","",IF(C80<$B$5,TRUNC(((1+$B$6)^(1/2)-1)*100,6),IF(C80=WORKDAY(WORKDAY($B$5,-1,Feriados!$A$2:$A$10000),1,Feriados!$A$2:$A$10000),TRUNC(((1+$B$6)^(1/2)-1)*100,6)+100,""))) ->  | E80: =IF(C80="","",NETWORKDAYS($B$4,C80,Feriados!$A$2:$A$10000)-1) ->  | F80: =IF(C80="","",VLOOKUP(C80,'DI Futuro Projetado'!B:G,6,FALSE)) ->  | G80: =IF(C80="","",(((VLOOKUP(C80,'VNA IPCA Projetado'!A:B,2,FALSE)/VLOOKUP($B$4,'VNA IPCA Projetado'!A:B,2,FALSE))^(252/E80))-1)*100) ->  | I80: =IF(C80="","",(VLOOKUP(C80,'VNA IPCA Projetado'!A:B,2,FALSE))*D80/100) -> 
A81: 2058-08-15 | C81: =IF(EDATE(A80,6)<=WORKDAY(WORKDAY($B$5,-1,Feriados!$A$2:$A$10000),1,Feriados!$A$2:$A$10000),WORKDAY(WORKDAY(EDATE(A80,6),-1,Feriados!$A$2:$A$10000),1,Feriados!$A$2:$A$10000),"") ->  | D81: =IF(C81="","",IF(C81<$B$5,TRUNC(((1+$B$6)^(1/2)-1)*100,6),IF(C81=WORKDAY(WORKDAY($B$5,-1,Feriados!$A$2:$A$10000),1,Feriados!$A$2:$A$10000),TRUNC(((1+$B$6)^(1/2)-1)*100,6)+100,""))) ->  | E81: =IF(C81="","",NETWORKDAYS($B$4,C81,Feriados!$A$2:$A$10000)-1) ->  | F81: =IF(C81="","",VLOOKUP(C81,'DI Futuro Projetado'!B:G,6,FALSE)) ->  | G81: =IF(C81="","",(((VLOOKUP(C81,'VNA IPCA Projetado'!A:B,2,FALSE)/VLOOKUP($B$4,'VNA IPCA Projetado'!A:B,2,FALSE))^(252/E81))-1)*100) ->  | I81: =IF(C81="","",(VLOOKUP(C81,'VNA IPCA Projetado'!A:B,2,FALSE))*D81/100) -> 
A82: 2059-02-15 | C82: =IF(EDATE(A81,6)<=WORKDAY(WORKDAY($B$5,-1,Feriados!$A$2:$A$10000),1,Feriados!$A$2:$A$10000),WORKDAY(WORKDAY(EDATE(A81,6),-1,Feriados!$A$2:$A$10000),1,Feriados!$A$2:$A$10000),"") ->  | D82: =IF(C82="","",IF(C82<$B$5,TRUNC(((1+$B$6)^(1/2)-1)*100,6),IF(C82=WORKDAY(WORKDAY($B$5,-1,Feriados!$A$2:$A$10000),1,Feriados!$A$2:$A$10000),TRUNC(((1+$B$6)^(1/2)-1)*100,6)+100,""))) ->  | E82: =IF(C82="","",NETWORKDAYS($B$4,C82,Feriados!$A$2:$A$10000)-1) ->  | F82: =IF(C82="","",VLOOKUP(C82,'DI Futuro Projetado'!B:G,6,FALSE)) ->  | G82: =IF(C82="","",(((VLOOKUP(C82,'VNA IPCA Projetado'!A:B,2,FALSE)/VLOOKUP($B$4,'VNA IPCA Projetado'!A:B,2,FALSE))^(252/E82))-1)*100) ->  | I82: =IF(C82="","",(VLOOKUP(C82,'VNA IPCA Projetado'!A:B,2,FALSE))*D82/100) -> 
A83: 2059-08-15 | C83: =IF(EDATE(A82,6)<=WORKDAY(WORKDAY($B$5,-1,Feriados!$A$2:$A$10000),1,Feriados!$A$2:$A$10000),WORKDAY(WORKDAY(EDATE(A82,6),-1,Feriados!$A$2:$A$10000),1,Feriados!$A$2:$A$10000),"") ->  | D83: =IF(C83="","",IF(C83<$B$5,TRUNC(((1+$B$6)^(1/2)-1)*100,6),IF(C83=WORKDAY(WORKDAY($B$5,-1,Feriados!$A$2:$A$10000),1,Feriados!$A$2:$A$10000),TRUNC(((1+$B$6)^(1/2)-1)*100,6)+100,""))) ->  | E83: =IF(C83="","",NETWORKDAYS($B$4,C83,Feriados!$A$2:$A$10000)-1) ->  | F83: =IF(C83="","",VLOOKUP(C83,'DI Futuro Projetado'!B:G,6,FALSE)) ->  | G83: =IF(C83="","",(((VLOOKUP(C83,'VNA IPCA Projetado'!A:B,2,FALSE)/VLOOKUP($B$4,'VNA IPCA Projetado'!A:B,2,FALSE))^(252/E83))-1)*100) ->  | I83: =IF(C83="","",(VLOOKUP(C83,'VNA IPCA Projetado'!A:B,2,FALSE))*D83/100) -> 
A84: 2060-02-15 | C84: =IF(EDATE(A83,6)<=WORKDAY(WORKDAY($B$5,-1,Feriados!$A$2:$A$10000),1,Feriados!$A$2:$A$10000),WORKDAY(WORKDAY(EDATE(A83,6),-1,Feriados!$A$2:$A$10000),1,Feriados!$A$2:$A$10000),"") ->  | D84: =IF(C84="","",IF(C84<$B$5,TRUNC(((1+$B$6)^(1/2)-1)*100,6),IF(C84=WORKDAY(WORKDAY($B$5,-1,Feriados!$A$2:$A$10000),1,Feriados!$A$2:$A$10000),TRUNC(((1+$B$6)^(1/2)-1)*100,6)+100,""))) ->  | E84: =IF(C84="","",NETWORKDAYS($B$4,C84,Feriados!$A$2:$A$10000)-1) ->  | F84: =IF(C84="","",VLOOKUP(C84,'DI Futuro Projetado'!B:G,6,FALSE)) ->  | G84: =IF(C84="","",(((VLOOKUP(C84,'VNA IPCA Projetado'!A:B,2,FALSE)/VLOOKUP($B$4,'VNA IPCA Projetado'!A:B,2,FALSE))^(252/E84))-1)*100) ->  | I84: =IF(C84="","",(VLOOKUP(C84,'VNA IPCA Projetado'!A:B,2,FALSE))*D84/100) -> 
A85: 2060-08-15 | C85: =IF(EDATE(A84,6)<=WORKDAY(WORKDAY($B$5,-1,Feriados!$A$2:$A$10000),1,Feriados!$A$2:$A$10000),WORKDAY(WORKDAY(EDATE(A84,6),-1,Feriados!$A$2:$A$10000),1,Feriados!$A$2:$A$10000),"") ->  | D85: =IF(C85="","",IF(C85<$B$5,TRUNC(((1+$B$6)^(1/2)-1)*100,6),IF(C85=WORKDAY(WORKDAY($B$5,-1,Feriados!$A$2:$A$10000),1,Feriados!$A$2:$A$10000),TRUNC(((1+$B$6)^(1/2)-1)*100,6)+100,""))) ->  | E85: =IF(C85="","",NETWORKDAYS($B$4,C85,Feriados!$A$2:$A$10000)-1) ->  | F85: =IF(C85="","",VLOOKUP(C85,'DI Futuro Projetado'!B:G,6,FALSE)) ->  | G85: =IF(C85="","",(((VLOOKUP(C85,'VNA IPCA Projetado'!A:B,2,FALSE)/VLOOKUP($B$4,'VNA IPCA Projetado'!A:B,2,FALSE))^(252/E85))-1)*100) ->  | I85: =IF(C85="","",(VLOOKUP(C85,'VNA IPCA Projetado'!A:B,2,FALSE))*D85/100) -> 
A86: 2061-02-15 | C86: =IF(EDATE(A85,6)<=WORKDAY(WORKDAY($B$5,-1,Feriados!$A$2:$A$10000),1,Feriados!$A$2:$A$10000),WORKDAY(WORKDAY(EDATE(A85,6),-1,Feriados!$A$2:$A$10000),1,Feriados!$A$2:$A$10000),"") ->  | D86: =IF(C86="","",IF(C86<$B$5,TRUNC(((1+$B$6)^(1/2)-1)*100,6),IF(C86=WORKDAY(WORKDAY($B$5,-1,Feriados!$A$2:$A$10000),1,Feriados!$A$2:$A$10000),TRUNC(((1+$B$6)^(1/2)-1)*100,6)+100,""))) ->  | E86: =IF(C86="","",NETWORKDAYS($B$4,C86,Feriados!$A$2:$A$10000)-1) ->  | F86: =IF(C86="","",VLOOKUP(C86,'DI Futuro Projetado'!B:G,6,FALSE)) ->  | G86: =IF(C86="","",(((VLOOKUP(C86,'VNA IPCA Projetado'!A:B,2,FALSE)/VLOOKUP($B$4,'VNA IPCA Projetado'!A:B,2,FALSE))^(252/E86))-1)*100) ->  | I86: =IF(C86="","",(VLOOKUP(C86,'VNA IPCA Projetado'!A:B,2,FALSE))*D86/100) -> 
A87: 2061-08-15 | C87: =IF(EDATE(A86,6)<=WORKDAY(WORKDAY($B$5,-1,Feriados!$A$2:$A$10000),1,Feriados!$A$2:$A$10000),WORKDAY(WORKDAY(EDATE(A86,6),-1,Feriados!$A$2:$A$10000),1,Feriados!$A$2:$A$10000),"") ->  | D87: =IF(C87="","",IF(C87<$B$5,TRUNC(((1+$B$6)^(1/2)-1)*100,6),IF(C87=WORKDAY(WORKDAY($B$5,-1,Feriados!$A$2:$A$10000),1,Feriados!$A$2:$A$10000),TRUNC(((1+$B$6)^(1/2)-1)*100,6)+100,""))) ->  | E87: =IF(C87="","",NETWORKDAYS($B$4,C87,Feriados!$A$2:$A$10000)-1) ->  | F87: =IF(C87="","",VLOOKUP(C87,'DI Futuro Projetado'!B:G,6,FALSE)) ->  | G87: =IF(C87="","",(((VLOOKUP(C87,'VNA IPCA Projetado'!A:B,2,FALSE)/VLOOKUP($B$4,'VNA IPCA Projetado'!A:B,2,FALSE))^(252/E87))-1)*100) ->  | I87: =IF(C87="","",(VLOOKUP(C87,'VNA IPCA Projetado'!A:B,2,FALSE))*D87/100) -> 
A88: 2062-02-15 | C88: =IF(EDATE(A87,6)<=WORKDAY(WORKDAY($B$5,-1,Feriados!$A$2:$A$10000),1,Feriados!$A$2:$A$10000),WORKDAY(WORKDAY(EDATE(A87,6),-1,Feriados!$A$2:$A$10000),1,Feriados!$A$2:$A$10000),"") ->  | D88: =IF(C88="","",IF(C88<$B$5,TRUNC(((1+$B$6)^(1/2)-1)*100,6),IF(C88=WORKDAY(WORKDAY($B$5,-1,Feriados!$A$2:$A$10000),1,Feriados!$A$2:$A$10000),TRUNC(((1+$B$6)^(1/2)-1)*100,6)+100,""))) ->  | E88: =IF(C88="","",NETWORKDAYS($B$4,C88,Feriados!$A$2:$A$10000)-1) ->  | F88: =IF(C88="","",VLOOKUP(C88,'DI Futuro Projetado'!B:G,6,FALSE)) ->  | G88: =IF(C88="","",(((VLOOKUP(C88,'VNA IPCA Projetado'!A:B,2,FALSE)/VLOOKUP($B$4,'VNA IPCA Projetado'!A:B,2,FALSE))^(252/E88))-1)*100) ->  | I88: =IF(C88="","",(VLOOKUP(C88,'VNA IPCA Projetado'!A:B,2,FALSE))*D88/100) -> 
A89: 2062-08-15 | C89: =IF(EDATE(A88,6)<=WORKDAY(WORKDAY($B$5,-1,Feriados!$A$2:$A$10000),1,Feriados!$A$2:$A$10000),WORKDAY(WORKDAY(EDATE(A88,6),-1,Feriados!$A$2:$A$10000),1,Feriados!$A$2:$A$10000),"") ->  | D89: =IF(C89="","",IF(C89<$B$5,TRUNC(((1+$B$6)^(1/2)-1)*100,6),IF(C89=WORKDAY(WORKDAY($B$5,-1,Feriados!$A$2:$A$10000),1,Feriados!$A$2:$A$10000),TRUNC(((1+$B$6)^(1/2)-1)*100,6)+100,""))) ->  | E89: =IF(C89="","",NETWORKDAYS($B$4,C89,Feriados!$A$2:$A$10000)-1) ->  | F89: =IF(C89="","",VLOOKUP(C89,'DI Futuro Projetado'!B:G,6,FALSE)) ->  | G89: =IF(C89="","",(((VLOOKUP(C89,'VNA IPCA Projetado'!A:B,2,FALSE)/VLOOKUP($B$4,'VNA IPCA Projetado'!A:B,2,FALSE))^(252/E89))-1)*100) ->  | I89: =IF(C89="","",(VLOOKUP(C89,'VNA IPCA Projetado'!A:B,2,FALSE))*D89/100) -> 
A90: 2063-02-15 | C90: =IF(EDATE(A89,6)<=WORKDAY(WORKDAY($B$5,-1,Feriados!$A$2:$A$10000),1,Feriados!$A$2:$A$10000),WORKDAY(WORKDAY(EDATE(A89,6),-1,Feriados!$A$2:$A$10000),1,Feriados!$A$2:$A$10000),"") ->  | D90: =IF(C90="","",IF(C90<$B$5,TRUNC(((1+$B$6)^(1/2)-1)*100,6),IF(C90=WORKDAY(WORKDAY($B$5,-1,Feriados!$A$2:$A$10000),1,Feriados!$A$2:$A$10000),TRUNC(((1+$B$6)^(1/2)-1)*100,6)+100,""))) ->  | E90: =IF(C90="","",NETWORKDAYS($B$4,C90,Feriados!$A$2:$A$10000)-1) ->  | F90: =IF(C90="","",VLOOKUP(C90,'DI Futuro Projetado'!B:G,6,FALSE)) ->  | G90: =IF(C90="","",(((VLOOKUP(C90,'VNA IPCA Projetado'!A:B,2,FALSE)/VLOOKUP($B$4,'VNA IPCA Projetado'!A:B,2,FALSE))^(252/E90))-1)*100) ->  | I90: =IF(C90="","",(VLOOKUP(C90,'VNA IPCA Projetado'!A:B,2,FALSE))*D90/100) -> 
A91: 2063-08-15 | C91: =IF(EDATE(A90,6)<=WORKDAY(WORKDAY($B$5,-1,Feriados!$A$2:$A$10000),1,Feriados!$A$2:$A$10000),WORKDAY(WORKDAY(EDATE(A90,6),-1,Feriados!$A$2:$A$10000),1,Feriados!$A$2:$A$10000),"") ->  | D91: =IF(C91="","",IF(C91<$B$5,TRUNC(((1+$B$6)^(1/2)-1)*100,6),IF(C91=WORKDAY(WORKDAY($B$5,-1,Feriados!$A$2:$A$10000),1,Feriados!$A$2:$A$10000),TRUNC(((1+$B$6)^(1/2)-1)*100,6)+100,""))) ->  | E91: =IF(C91="","",NETWORKDAYS($B$4,C91,Feriados!$A$2:$A$10000)-1) ->  | F91: =IF(C91="","",VLOOKUP(C91,'DI Futuro Projetado'!B:G,6,FALSE)) ->  | G91: =IF(C91="","",(((VLOOKUP(C91,'VNA IPCA Projetado'!A:B,2,FALSE)/VLOOKUP($B$4,'VNA IPCA Projetado'!A:B,2,FALSE))^(252/E91))-1)*100) ->  | I91: =IF(C91="","",(VLOOKUP(C91,'VNA IPCA Projetado'!A:B,2,FALSE))*D91/100) -> 
A92: 2064-02-15 | C92: =IF(EDATE(A91,6)<=WORKDAY(WORKDAY($B$5,-1,Feriados!$A$2:$A$10000),1,Feriados!$A$2:$A$10000),WORKDAY(WORKDAY(EDATE(A91,6),-1,Feriados!$A$2:$A$10000),1,Feriados!$A$2:$A$10000),"") ->  | D92: =IF(C92="","",IF(C92<$B$5,TRUNC(((1+$B$6)^(1/2)-1)*100,6),IF(C92=WORKDAY(WORKDAY($B$5,-1,Feriados!$A$2:$A$10000),1,Feriados!$A$2:$A$10000),TRUNC(((1+$B$6)^(1/2)-1)*100,6)+100,""))) ->  | E92: =IF(C92="","",NETWORKDAYS($B$4,C92,Feriados!$A$2:$A$10000)-1) ->  | F92: =IF(C92="","",VLOOKUP(C92,'DI Futuro Projetado'!B:G,6,FALSE)) ->  | G92: =IF(C92="","",(((VLOOKUP(C92,'VNA IPCA Projetado'!A:B,2,FALSE)/VLOOKUP($B$4,'VNA IPCA Projetado'!A:B,2,FALSE))^(252/E92))-1)*100) ->  | I92: =IF(C92="","",(VLOOKUP(C92,'VNA IPCA Projetado'!A:B,2,FALSE))*D92/100) -> 
A93: 2064-08-15 | C93: =IF(EDATE(A92,6)<=WORKDAY(WORKDAY($B$5,-1,Feriados!$A$2:$A$10000),1,Feriados!$A$2:$A$10000),WORKDAY(WORKDAY(EDATE(A92,6),-1,Feriados!$A$2:$A$10000),1,Feriados!$A$2:$A$10000),"") ->  | D93: =IF(C93="","",IF(C93<$B$5,TRUNC(((1+$B$6)^(1/2)-1)*100,6),IF(C93=WORKDAY(WORKDAY($B$5,-1,Feriados!$A$2:$A$10000),1,Feriados!$A$2:$A$10000),TRUNC(((1+$B$6)^(1/2)-1)*100,6)+100,""))) ->  | E93: =IF(C93="","",NETWORKDAYS($B$4,C93,Feriados!$A$2:$A$10000)-1) ->  | F93: =IF(C93="","",VLOOKUP(C93,'DI Futuro Projetado'!B:G,6,FALSE)) ->  | G93: =IF(C93="","",(((VLOOKUP(C93,'VNA IPCA Projetado'!A:B,2,FALSE)/VLOOKUP($B$4,'VNA IPCA Projetado'!A:B,2,FALSE))^(252/E93))-1)*100) ->  | I93: =IF(C93="","",(VLOOKUP(C93,'VNA IPCA Projetado'!A:B,2,FALSE))*D93/100) -> 
A94: 2065-02-15 | C94: =IF(EDATE(A93,6)<=WORKDAY(WORKDAY($B$5,-1,Feriados!$A$2:$A$10000),1,Feriados!$A$2:$A$10000),WORKDAY(WORKDAY(EDATE(A93,6),-1,Feriados!$A$2:$A$10000),1,Feriados!$A$2:$A$10000),"") ->  | D94: =IF(C94="","",IF(C94<$B$5,TRUNC(((1+$B$6)^(1/2)-1)*100,6),IF(C94=WORKDAY(WORKDAY($B$5,-1,Feriados!$A$2:$A$10000),1,Feriados!$A$2:$A$10000),TRUNC(((1+$B$6)^(1/2)-1)*100,6)+100,""))) ->  | E94: =IF(C94="","",NETWORKDAYS($B$4,C94,Feriados!$A$2:$A$10000)-1) ->  | F94: =IF(C94="","",VLOOKUP(C94,'DI Futuro Projetado'!B:G,6,FALSE)) ->  | G94: =IF(C94="","",(((VLOOKUP(C94,'VNA IPCA Projetado'!A:B,2,FALSE)/VLOOKUP($B$4,'VNA IPCA Projetado'!A:B,2,FALSE))^(252/E94))-1)*100) ->  | I94: =IF(C94="","",(VLOOKUP(C94,'VNA IPCA Projetado'!A:B,2,FALSE))*D94/100) -> 
A95: 2065-08-15 | C95: =IF(EDATE(A94,6)<=WORKDAY(WORKDAY($B$5,-1,Feriados!$A$2:$A$10000),1,Feriados!$A$2:$A$10000),WORKDAY(WORKDAY(EDATE(A94,6),-1,Feriados!$A$2:$A$10000),1,Feriados!$A$2:$A$10000),"") ->  | D95: =IF(C95="","",IF(C95<$B$5,TRUNC(((1+$B$6)^(1/2)-1)*100,6),IF(C95=WORKDAY(WORKDAY($B$5,-1,Feriados!$A$2:$A$10000),1,Feriados!$A$2:$A$10000),TRUNC(((1+$B$6)^(1/2)-1)*100,6)+100,""))) ->  | E95: =IF(C95="","",NETWORKDAYS($B$4,C95,Feriados!$A$2:$A$10000)-1) ->  | F95: =IF(C95="","",VLOOKUP(C95,'DI Futuro Projetado'!B:G,6,FALSE)) ->  | G95: =IF(C95="","",(((VLOOKUP(C95,'VNA IPCA Projetado'!A:B,2,FALSE)/VLOOKUP($B$4,'VNA IPCA Projetado'!A:B,2,FALSE))^(252/E95))-1)*100) ->  | I95: =IF(C95="","",(VLOOKUP(C95,'VNA IPCA Projetado'!A:B,2,FALSE))*D95/100) -> 
A96: 2066-02-15 | C96: =IF(EDATE(A95,6)<=WORKDAY(WORKDAY($B$5,-1,Feriados!$A$2:$A$10000),1,Feriados!$A$2:$A$10000),WORKDAY(WORKDAY(EDATE(A95,6),-1,Feriados!$A$2:$A$10000),1,Feriados!$A$2:$A$10000),"") ->  | D96: =IF(C96="","",IF(C96<$B$5,TRUNC(((1+$B$6)^(1/2)-1)*100,6),IF(C96=WORKDAY(WORKDAY($B$5,-1,Feriados!$A$2:$A$10000),1,Feriados!$A$2:$A$10000),TRUNC(((1+$B$6)^(1/2)-1)*100,6)+100,""))) ->  | E96: =IF(C96="","",NETWORKDAYS($B$4,C96,Feriados!$A$2:$A$10000)-1) ->  | F96: =IF(C96="","",VLOOKUP(C96,'DI Futuro Projetado'!B:G,6,FALSE)) ->  | G96: =IF(C96="","",(((VLOOKUP(C96,'VNA IPCA Projetado'!A:B,2,FALSE)/VLOOKUP($B$4,'VNA IPCA Projetado'!A:B,2,FALSE))^(252/E96))-1)*100) ->  | I96: =IF(C96="","",(VLOOKUP(C96,'VNA IPCA Projetado'!A:B,2,FALSE))*D96/100) -> 
A97: 2066-08-15 | C97: =IF(EDATE(A96,6)<=WORKDAY(WORKDAY($B$5,-1,Feriados!$A$2:$A$10000),1,Feriados!$A$2:$A$10000),WORKDAY(WORKDAY(EDATE(A96,6),-1,Feriados!$A$2:$A$10000),1,Feriados!$A$2:$A$10000),"") ->  | D97: =IF(C97="","",IF(C97<$B$5,TRUNC(((1+$B$6)^(1/2)-1)*100,6),IF(C97=WORKDAY(WORKDAY($B$5,-1,Feriados!$A$2:$A$10000),1,Feriados!$A$2:$A$10000),TRUNC(((1+$B$6)^(1/2)-1)*100,6)+100,""))) ->  | E97: =IF(C97="","",NETWORKDAYS($B$4,C97,Feriados!$A$2:$A$10000)-1) ->  | F97: =IF(C97="","",VLOOKUP(C97,'DI Futuro Projetado'!B:G,6,FALSE)) ->  | G97: =IF(C97="","",(((VLOOKUP(C97,'VNA IPCA Projetado'!A:B,2,FALSE)/VLOOKUP($B$4,'VNA IPCA Projetado'!A:B,2,FALSE))^(252/E97))-1)*100) ->  | I97: =IF(C97="","",(VLOOKUP(C97,'VNA IPCA Projetado'!A:B,2,FALSE))*D97/100) -> 
A98: 2067-02-15 | C98: =IF(EDATE(A97,6)<=WORKDAY(WORKDAY($B$5,-1,Feriados!$A$2:$A$10000),1,Feriados!$A$2:$A$10000),WORKDAY(WORKDAY(EDATE(A97,6),-1,Feriados!$A$2:$A$10000),1,Feriados!$A$2:$A$10000),"") ->  | D98: =IF(C98="","",IF(C98<$B$5,TRUNC(((1+$B$6)^(1/2)-1)*100,6),IF(C98=WORKDAY(WORKDAY($B$5,-1,Feriados!$A$2:$A$10000),1,Feriados!$A$2:$A$10000),TRUNC(((1+$B$6)^(1/2)-1)*100,6)+100,""))) ->  | E98: =IF(C98="","",NETWORKDAYS($B$4,C98,Feriados!$A$2:$A$10000)-1) ->  | F98: =IF(C98="","",VLOOKUP(C98,'DI Futuro Projetado'!B:G,6,FALSE)) ->  | G98: =IF(C98="","",(((VLOOKUP(C98,'VNA IPCA Projetado'!A:B,2,FALSE)/VLOOKUP($B$4,'VNA IPCA Projetado'!A:B,2,FALSE))^(252/E98))-1)*100) ->  | I98: =IF(C98="","",(VLOOKUP(C98,'VNA IPCA Projetado'!A:B,2,FALSE))*D98/100) -> 
A99: 2067-08-15 | C99: =IF(EDATE(A98,6)<=WORKDAY(WORKDAY($B$5,-1,Feriados!$A$2:$A$10000),1,Feriados!$A$2:$A$10000),WORKDAY(WORKDAY(EDATE(A98,6),-1,Feriados!$A$2:$A$10000),1,Feriados!$A$2:$A$10000),"") ->  | D99: =IF(C99="","",IF(C99<$B$5,TRUNC(((1+$B$6)^(1/2)-1)*100,6),IF(C99=WORKDAY(WORKDAY($B$5,-1,Feriados!$A$2:$A$10000),1,Feriados!$A$2:$A$10000),TRUNC(((1+$B$6)^(1/2)-1)*100,6)+100,""))) ->  | E99: =IF(C99="","",NETWORKDAYS($B$4,C99,Feriados!$A$2:$A$10000)-1) ->  | F99: =IF(C99="","",VLOOKUP(C99,'DI Futuro Projetado'!B:G,6,FALSE)) ->  | G99: =IF(C99="","",(((VLOOKUP(C99,'VNA IPCA Projetado'!A:B,2,FALSE)/VLOOKUP($B$4,'VNA IPCA Projetado'!A:B,2,FALSE))^(252/E99))-1)*100) ->  | I99: =IF(C99="","",(VLOOKUP(C99,'VNA IPCA Projetado'!A:B,2,FALSE))*D99/100) -> 
A100: 2068-02-15 | C100: =IF(EDATE(A99,6)<=WORKDAY(WORKDAY($B$5,-1,Feriados!$A$2:$A$10000),1,Feriados!$A$2:$A$10000),WORKDAY(WORKDAY(EDATE(A99,6),-1,Feriados!$A$2:$A$10000),1,Feriados!$A$2:$A$10000),"") ->  | D100: =IF(C100="","",IF(C100<$B$5,TRUNC(((1+$B$6)^(1/2)-1)*100,6),IF(C100=WORKDAY(WORKDAY($B$5,-1,Feriados!$A$2:$A$10000),1,Feriados!$A$2:$A$10000),TRUNC(((1+$B$6)^(1/2)-1)*100,6)+100,""))) ->  | E100: =IF(C100="","",NETWORKDAYS($B$4,C100,Feriados!$A$2:$A$10000)-1) ->  | F100: =IF(C100="","",VLOOKUP(C100,'DI Futuro Projetado'!B:G,6,FALSE)) ->  | G100: =IF(C100="","",(((VLOOKUP(C100,'VNA IPCA Projetado'!A:B,2,FALSE)/VLOOKUP($B$4,'VNA IPCA Projetado'!A:B,2,FALSE))^(252/E100))-1)*100) ->  | I100: =IF(C100="","",(VLOOKUP(C100,'VNA IPCA Projetado'!A:B,2,FALSE))*D100/100) -> 
A101: 2068-08-15 | C101: =IF(EDATE(A100,6)<=WORKDAY(WORKDAY($B$5,-1,Feriados!$A$2:$A$10000),1,Feriados!$A$2:$A$10000),WORKDAY(WORKDAY(EDATE(A100,6),-1,Feriados!$A$2:$A$10000),1,Feriados!$A$2:$A$10000),"") ->  | D101: =IF(C101="","",IF(C101<$B$5,TRUNC(((1+$B$6)^(1/2)-1)*100,6),IF(C101=WORKDAY(WORKDAY($B$5,-1,Feriados!$A$2:$A$10000),1,Feriados!$A$2:$A$10000),TRUNC(((1+$B$6)^(1/2)-1)*100,6)+100,""))) ->  | E101: =IF(C101="","",NETWORKDAYS($B$4,C101,Feriados!$A$2:$A$10000)-1) ->  | F101: =IF(C101="","",VLOOKUP(C101,'DI Futuro Projetado'!B:G,6,FALSE)) ->  | G101: =IF(C101="","",(((VLOOKUP(C101,'VNA IPCA Projetado'!A:B,2,FALSE)/VLOOKUP($B$4,'VNA IPCA Projetado'!A:B,2,FALSE))^(252/E101))-1)*100) ->  | I101: =IF(C101="","",(VLOOKUP(C101,'VNA IPCA Projetado'!A:B,2,FALSE))*D101/100) -> 
A102: 2069-02-15 | C102: =IF(EDATE(A101,6)<=WORKDAY(WORKDAY($B$5,-1,Feriados!$A$2:$A$10000),1,Feriados!$A$2:$A$10000),WORKDAY(WORKDAY(EDATE(A101,6),-1,Feriados!$A$2:$A$10000),1,Feriados!$A$2:$A$10000),"") ->  | D102: =IF(C102="","",IF(C102<$B$5,TRUNC(((1+$B$6)^(1/2)-1)*100,6),IF(C102=WORKDAY(WORKDAY($B$5,-1,Feriados!$A$2:$A$10000),1,Feriados!$A$2:$A$10000),TRUNC(((1+$B$6)^(1/2)-1)*100,6)+100,""))) ->  | E102: =IF(C102="","",NETWORKDAYS($B$4,C102,Feriados!$A$2:$A$10000)-1) ->  | F102: =IF(C102="","",VLOOKUP(C102,'DI Futuro Projetado'!B:G,6,FALSE)) ->  | G102: =IF(C102="","",(((VLOOKUP(C102,'VNA IPCA Projetado'!A:B,2,FALSE)/VLOOKUP($B$4,'VNA IPCA Projetado'!A:B,2,FALSE))^(252/E102))-1)*100) ->  | I102: =IF(C102="","",(VLOOKUP(C102,'VNA IPCA Projetado'!A:B,2,FALSE))*D102/100) -> 
A103: 2069-08-15 | C103: =IF(EDATE(A102,6)<=WORKDAY(WORKDAY($B$5,-1,Feriados!$A$2:$A$10000),1,Feriados!$A$2:$A$10000),WORKDAY(WORKDAY(EDATE(A102,6),-1,Feriados!$A$2:$A$10000),1,Feriados!$A$2:$A$10000),"") ->  | D103: =IF(C103="","",IF(C103<$B$5,TRUNC(((1+$B$6)^(1/2)-1)*100,6),IF(C103=WORKDAY(WORKDAY($B$5,-1,Feriados!$A$2:$A$10000),1,Feriados!$A$2:$A$10000),TRUNC(((1+$B$6)^(1/2)-1)*100,6)+100,""))) ->  | E103: =IF(C103="","",NETWORKDAYS($B$4,C103,Feriados!$A$2:$A$10000)-1) ->  | F103: =IF(C103="","",VLOOKUP(C103,'DI Futuro Projetado'!B:G,6,FALSE)) ->  | G103: =IF(C103="","",(((VLOOKUP(C103,'VNA IPCA Projetado'!A:B,2,FALSE)/VLOOKUP($B$4,'VNA IPCA Projetado'!A:B,2,FALSE))^(252/E103))-1)*100) ->  | I103: =IF(C103="","",(VLOOKUP(C103,'VNA IPCA Projetado'!A:B,2,FALSE))*D103/100) -> 
A104: 2070-02-15 | C104: =IF(EDATE(A103,6)<=WORKDAY(WORKDAY($B$5,-1,Feriados!$A$2:$A$10000),1,Feriados!$A$2:$A$10000),WORKDAY(WORKDAY(EDATE(A103,6),-1,Feriados!$A$2:$A$10000),1,Feriados!$A$2:$A$10000),"") ->  | D104: =IF(C104="","",IF(C104<$B$5,TRUNC(((1+$B$6)^(1/2)-1)*100,6),IF(C104=WORKDAY(WORKDAY($B$5,-1,Feriados!$A$2:$A$10000),1,Feriados!$A$2:$A$10000),TRUNC(((1+$B$6)^(1/2)-1)*100,6)+100,""))) ->  | E104: =IF(C104="","",NETWORKDAYS($B$4,C104,Feriados!$A$2:$A$10000)-1) ->  | F104: =IF(C104="","",VLOOKUP(C104,'DI Futuro Projetado'!B:G,6,FALSE)) ->  | G104: =IF(C104="","",(((VLOOKUP(C104,'VNA IPCA Projetado'!A:B,2,FALSE)/VLOOKUP($B$4,'VNA IPCA Projetado'!A:B,2,FALSE))^(252/E104))-1)*100) ->  | I104: =IF(C104="","",(VLOOKUP(C104,'VNA IPCA Projetado'!A:B,2,FALSE))*D104/100) -> 
A105: 2070-08-15 | C105: =IF(EDATE(A104,6)<=WORKDAY(WORKDAY($B$5,-1,Feriados!$A$2:$A$10000),1,Feriados!$A$2:$A$10000),WORKDAY(WORKDAY(EDATE(A104,6),-1,Feriados!$A$2:$A$10000),1,Feriados!$A$2:$A$10000),"") ->  | D105: =IF(C105="","",IF(C105<$B$5,TRUNC(((1+$B$6)^(1/2)-1)*100,6),IF(C105=WORKDAY(WORKDAY($B$5,-1,Feriados!$A$2:$A$10000),1,Feriados!$A$2:$A$10000),TRUNC(((1+$B$6)^(1/2)-1)*100,6)+100,""))) ->  | E105: =IF(C105="","",NETWORKDAYS($B$4,C105,Feriados!$A$2:$A$10000)-1) ->  | F105: =IF(C105="","",VLOOKUP(C105,'DI Futuro Projetado'!B:G,6,FALSE)) ->  | G105: =IF(C105="","",(((VLOOKUP(C105,'VNA IPCA Projetado'!A:B,2,FALSE)/VLOOKUP($B$4,'VNA IPCA Projetado'!A:B,2,FALSE))^(252/E105))-1)*100) ->  | I105: =IF(C105="","",(VLOOKUP(C105,'VNA IPCA Projetado'!A:B,2,FALSE))*D105/100) -> 
A106: 2071-02-15 | C106: =IF(EDATE(A105,6)<=WORKDAY(WORKDAY($B$5,-1,Feriados!$A$2:$A$10000),1,Feriados!$A$2:$A$10000),WORKDAY(WORKDAY(EDATE(A105,6),-1,Feriados!$A$2:$A$10000),1,Feriados!$A$2:$A$10000),"") ->  | D106: =IF(C106="","",IF(C106<$B$5,TRUNC(((1+$B$6)^(1/2)-1)*100,6),IF(C106=WORKDAY(WORKDAY($B$5,-1,Feriados!$A$2:$A$10000),1,Feriados!$A$2:$A$10000),TRUNC(((1+$B$6)^(1/2)-1)*100,6)+100,""))) ->  | E106: =IF(C106="","",NETWORKDAYS($B$4,C106,Feriados!$A$2:$A$10000)-1) ->  | F106: =IF(C106="","",VLOOKUP(C106,'DI Futuro Projetado'!B:G,6,FALSE)) ->  | G106: =IF(C106="","",(((VLOOKUP(C106,'VNA IPCA Projetado'!A:B,2,FALSE)/VLOOKUP($B$4,'VNA IPCA Projetado'!A:B,2,FALSE))^(252/E106))-1)*100) ->  | I106: =IF(C106="","",(VLOOKUP(C106,'VNA IPCA Projetado'!A:B,2,FALSE))*D106/100) -> 
A107: 2071-08-15 | C107: =IF(EDATE(A106,6)<=WORKDAY(WORKDAY($B$5,-1,Feriados!$A$2:$A$10000),1,Feriados!$A$2:$A$10000),WORKDAY(WORKDAY(EDATE(A106,6),-1,Feriados!$A$2:$A$10000),1,Feriados!$A$2:$A$10000),"") ->  | D107: =IF(C107="","",IF(C107<$B$5,TRUNC(((1+$B$6)^(1/2)-1)*100,6),IF(C107=WORKDAY(WORKDAY($B$5,-1,Feriados!$A$2:$A$10000),1,Feriados!$A$2:$A$10000),TRUNC(((1+$B$6)^(1/2)-1)*100,6)+100,""))) ->  | E107: =IF(C107="","",NETWORKDAYS($B$4,C107,Feriados!$A$2:$A$10000)-1) ->  | F107: =IF(C107="","",VLOOKUP(C107,'DI Futuro Projetado'!B:G,6,FALSE)) ->  | G107: =IF(C107="","",(((VLOOKUP(C107,'VNA IPCA Projetado'!A:B,2,FALSE)/VLOOKUP($B$4,'VNA IPCA Projetado'!A:B,2,FALSE))^(252/E107))-1)*100) ->  | I107: =IF(C107="","",(VLOOKUP(C107,'VNA IPCA Projetado'!A:B,2,FALSE))*D107/100) -> 
A108: 2072-02-15 | C108: =IF(EDATE(A107,6)<=WORKDAY(WORKDAY($B$5,-1,Feriados!$A$2:$A$10000),1,Feriados!$A$2:$A$10000),WORKDAY(WORKDAY(EDATE(A107,6),-1,Feriados!$A$2:$A$10000),1,Feriados!$A$2:$A$10000),"") ->  | D108: =IF(C108="","",IF(C108<$B$5,TRUNC(((1+$B$6)^(1/2)-1)*100,6),IF(C108=WORKDAY(WORKDAY($B$5,-1,Feriados!$A$2:$A$10000),1,Feriados!$A$2:$A$10000),TRUNC(((1+$B$6)^(1/2)-1)*100,6)+100,""))) ->  | E108: =IF(C108="","",NETWORKDAYS($B$4,C108,Feriados!$A$2:$A$10000)-1) ->  | F108: =IF(C108="","",VLOOKUP(C108,'DI Futuro Projetado'!B:G,6,FALSE)) ->  | G108: =IF(C108="","",(((VLOOKUP(C108,'VNA IPCA Projetado'!A:B,2,FALSE)/VLOOKUP($B$4,'VNA IPCA Projetado'!A:B,2,FALSE))^(252/E108))-1)*100) ->  | I108: =IF(C108="","",(VLOOKUP(C108,'VNA IPCA Projetado'!A:B,2,FALSE))*D108/100) -> 
A109: 2072-08-15 | B109: =IF(C109="","",B108+1) ->  | C109: =IF(EDATE(A108,6)<=WORKDAY(WORKDAY($B$5,-1,Feriados!$A$2:$A$10000),1,Feriados!$A$2:$A$10000),WORKDAY(WORKDAY(EDATE(A108,6),-1,Feriados!$A$2:$A$10000),1,Feriados!$A$2:$A$10000),"") ->  | D109: =IF(C109="","",IF(C109<$B$5,TRUNC(((1+$B$6)^(1/2)-1)*100,6),IF(C109=WORKDAY(WORKDAY($B$5,-1,Feriados!$A$2:$A$10000),1,Feriados!$A$2:$A$10000),TRUNC(((1+$B$6)^(1/2)-1)*100,6)+100,""))) ->  | E109: =IF(C109="","",NETWORKDAYS($B$4,C109,Feriados!$A$2:$A$10000)-1) ->  | F109: =IF(C109="","",VLOOKUP(C109,'DI Futuro Projetado'!B:G,6,FALSE)) ->  | G109: =IF(C109="","",(((VLOOKUP(C109,'VNA IPCA Projetado'!A:B,2,FALSE)/VLOOKUP($B$4,'VNA IPCA Projetado'!A:B,2,FALSE))^(252/E109))-1)*100) ->  | I109: =IF(C109="","",(VLOOKUP(C109,'VNA IPCA Projetado'!A:B,2,FALSE))*D109/100) -> 
A110: 2073-02-15 | B110: =IF(C110="","",B109+1) ->  | C110: =IF(EDATE(A109,6)<=WORKDAY(WORKDAY($B$5,-1,Feriados!$A$2:$A$10000),1,Feriados!$A$2:$A$10000),WORKDAY(WORKDAY(EDATE(A109,6),-1,Feriados!$A$2:$A$10000),1,Feriados!$A$2:$A$10000),"") ->  | D110: =IF(C110="","",IF(C110<$B$5,TRUNC(((1+$B$6)^(1/2)-1)*100,6),IF(C110=WORKDAY(WORKDAY($B$5,-1,Feriados!$A$2:$A$10000),1,Feriados!$A$2:$A$10000),TRUNC(((1+$B$6)^(1/2)-1)*100,6)+100,""))) ->  | E110: =IF(C110="","",NETWORKDAYS($B$4,C110,Feriados!$A$2:$A$10000)-1) ->  | F110: =IF(C110="","",VLOOKUP(C110,'DI Futuro Projetado'!B:G,6,FALSE)) ->  | G110: =IF(C110="","",(((VLOOKUP(C110,'VNA IPCA Projetado'!A:B,2,FALSE)/VLOOKUP($B$4,'VNA IPCA Projetado'!A:B,2,FALSE))^(252/E110))-1)*100) ->  | I110: =IF(C110="","",(VLOOKUP(C110,'VNA IPCA Projetado'!A:B,2,FALSE))*D110/100) -> 
A111: 2073-08-15 | B111: =IF(C111="","",B110+1) ->  | C111: =IF(EDATE(A110,6)<=WORKDAY(WORKDAY($B$5,-1,Feriados!$A$2:$A$10000),1,Feriados!$A$2:$A$10000),WORKDAY(WORKDAY(EDATE(A110,6),-1,Feriados!$A$2:$A$10000),1,Feriados!$A$2:$A$10000),"") ->  | D111: =IF(C111="","",IF(C111<$B$5,TRUNC(((1+$B$6)^(1/2)-1)*100,6),IF(C111=WORKDAY(WORKDAY($B$5,-1,Feriados!$A$2:$A$10000),1,Feriados!$A$2:$A$10000),TRUNC(((1+$B$6)^(1/2)-1)*100,6)+100,""))) ->  | E111: =IF(C111="","",NETWORKDAYS($B$4,C111,Feriados!$A$2:$A$10000)-1) ->  | F111: =IF(C111="","",VLOOKUP(C111,'DI Futuro Projetado'!B:G,6,FALSE)) ->  | G111: =IF(C111="","",(((VLOOKUP(C111,'VNA IPCA Projetado'!A:B,2,FALSE)/VLOOKUP($B$4,'VNA IPCA Projetado'!A:B,2,FALSE))^(252/E111))-1)*100) ->  | I111: =IF(C111="","",(VLOOKUP(C111,'VNA IPCA Projetado'!A:B,2,FALSE))*D111/100) -> 
A112: 2074-02-15 | B112: =IF(C112="","",B111+1) ->  | C112: =IF(EDATE(A111,6)<=WORKDAY(WORKDAY($B$5,-1,Feriados!$A$2:$A$10000),1,Feriados!$A$2:$A$10000),WORKDAY(WORKDAY(EDATE(A111,6),-1,Feriados!$A$2:$A$10000),1,Feriados!$A$2:$A$10000),"") ->  | D112: =IF(C112="","",IF(C112<$B$5,TRUNC(((1+$B$6)^(1/2)-1)*100,6),IF(C112=WORKDAY(WORKDAY($B$5,-1,Feriados!$A$2:$A$10000),1,Feriados!$A$2:$A$10000),TRUNC(((1+$B$6)^(1/2)-1)*100,6)+100,""))) ->  | E112: =IF(C112="","",NETWORKDAYS($B$4,C112,Feriados!$A$2:$A$10000)-1) ->  | F112: =IF(C112="","",VLOOKUP(C112,'DI Futuro Projetado'!B:G,6,FALSE)) ->  | G112: =IF(C112="","",(((VLOOKUP(C112,'VNA IPCA Projetado'!A:B,2,FALSE)/VLOOKUP($B$4,'VNA IPCA Projetado'!A:B,2,FALSE))^(252/E112))-1)*100) ->  | I112: =IF(C112="","",(VLOOKUP(C112,'VNA IPCA Projetado'!A:B,2,FALSE))*D112/100) -> 
A113: 2074-08-15 | B113: =IF(C113="","",B112+1) ->  | C113: =IF(EDATE(A112,6)<=WORKDAY(WORKDAY($B$5,-1,Feriados!$A$2:$A$10000),1,Feriados!$A$2:$A$10000),WORKDAY(WORKDAY(EDATE(A112,6),-1,Feriados!$A$2:$A$10000),1,Feriados!$A$2:$A$10000),"") ->  | D113: =IF(C113="","",IF(C113<$B$5,TRUNC(((1+$B$6)^(1/2)-1)*100,6),IF(C113=WORKDAY(WORKDAY($B$5,-1,Feriados!$A$2:$A$10000),1,Feriados!$A$2:$A$10000),TRUNC(((1+$B$6)^(1/2)-1)*100,6)+100,""))) ->  | E113: =IF(C113="","",NETWORKDAYS($B$4,C113,Feriados!$A$2:$A$10000)-1) ->  | F113: =IF(C113="","",VLOOKUP(C113,'DI Futuro Projetado'!B:G,6,FALSE)) ->  | G113: =IF(C113="","",(((VLOOKUP(C113,'VNA IPCA Projetado'!A:B,2,FALSE)/VLOOKUP($B$4,'VNA IPCA Projetado'!A:B,2,FALSE))^(252/E113))-1)*100) ->  | I113: =IF(C113="","",(VLOOKUP(C113,'VNA IPCA Projetado'!A:B,2,FALSE))*D113/100) -> 

Sheet Feriados
A1: DATA | B1: EVENTO | C1: SEMANA
A2: 1993-01-01 | B2: CONFRATERNIZACAO | C2: sexta-feira
A3: 1993-04-21 | B3: TIRADENTES | C3: quarta-feira
A4: 1993-05-01 | B4: DIA DO TRABALHO | C4: sábado
A5: 1993-09-07 | B5: INDEPENDENCIA | C5: terça-feira
A6: 1993-10-12 | B6: N.S.APARECIDA | C6: terça-feira
A7: 1993-11-02 | B7: FINADOS | C7: terça-feira
A8: 1993-11-15 | B8: PROCLAMACAO DA REP. | C8: segunda-feira
A9: 1993-12-25 | B9: NATAL | C9: sábado
A10: 1993-12-31 | B10: ULT.DIA ANO-SEM COMP | C10: sexta-feira
A11: 1994-01-01 | B11: CONFRATERNIZACAO | C11: sábado
A12: 1994-02-14 | B12: CARNAVAL | C12: segunda-feira
A13: 1994-02-15 | B13: CARNAVAL | C13: terça-feira
A14: 1994-03-31 | B14: QUINTA-FEIRA SANTA | C14: quinta-feira
A15: 1994-04-01 | B15: SEXTA-FEIRA DA PAIXA | C15: sexta-feira
A16: 1994-04-21 | B16: TIRADENTES | C16: quinta-feira
A17: 1994-05-01 | B17: DIA DO TRABALHO | C17: domingo
A18: 1994-06-02 | B18: CORPUS CHRISTI | C18: quinta-feira
A19: 1994-09-07 | B19: INDEPENDENCIA | C19: quarta-feira
A20: 1994-10-03 | B20: ELEICOES GERAIS | C20: segunda-feira
A21: 1994-10-12 | B21: N.S.APARECIDA | C21: quarta-feira
A22: 1994-11-02 | B22: FINADOS | C22: quarta-feira
A23: 1994-11-15 | B23: PROCLAMACAO DA REP. | C23: terça-feira
A24: 1994-12-25 | B24: NATAL | C24: domingo
A25: 1995-01-01 | B25: CONFRATERNIZACAO | C25: domingo
A26: 1995-02-27 | B26: CARNAVAL | C26: segunda-feira
A27: 1995-02-28 | B27: CARNAVAL | C27: terça-feira
A28: 1995-04-13 | B28: QUINTA-FEIRA SANTA | C28: quinta-feira
A29: 1995-04-14 | B29: SEXTA-FEIRA PAIXAO | C29: sexta-feira
A30: 1995-04-21 | B30: TIRADENTES | C30: sexta-feira
A31: 1995-05-01 | B31: DIA DO TRABALHO | C31: segunda-feira
A32: 1995-06-15 | B32: CORPUS CHRISTI | C32: quinta-feira
A33: 1995-09-07 | B33: INDEPENDENCIA | C33: quinta-feira
A34: 1995-10-12 | B34: N.S.APARECIDA | C34: quinta-feira
A35: 1995-11-02 | B35: FINADOS | C35: quinta-feira
A36: 1995-11-15 | B36: PROCLAMACAO DA REP. | C36: quarta-feira
A37: 1995-12-25 | B37: NATAL | C37: segunda-feira
A38: 1996-01-01 | B38: CONFRATERNIZACAO | C38: segunda-feira
A39: 1996-02-19 | B39: CARNAVAL | C39: segunda-feira
A40: 1996-02-20 | B40: CARNAVAL | C40: terça-feira
A41: 1996-04-04 | B41: QUINTA-FEIRA SANTA | C41: quinta-feira
A42: 1996-04-05 | B42: SEXTA-FEIRA PAIXAO | C42: sexta-feira
A43: 1996-04-21 | B43: TIRADENTES | C43: domingo
A44: 1996-05-01 | B44: DIA DO TRABALHO | C44: quarta-feira
A45: 1996-06-06 | B45: CORPUS CHRISTI | C45: quinta-feira
A46: 1996-09-07 | B46: INDEPENDENCIA | C46: sábado
A47: 1996-10-03 | B47: ELEICOES MUNICIPAIS | C47: quinta-feira
A48: 1996-10-12 | B48: N.S.APARECIDA | C48: sábado
A49: 1996-11-02 | B49: FINADOS | C49: sábado
A50: 1996-11-15 | B50: PROCLAMACAO DA REP. | C50: sexta-feira
A51: 1996-12-25 | B51: NATAL | C51: quarta-feira
A52: 1997-01-01 | B52: CONFRATERNIZACAO | C52: quarta-feira
A53: 1997-02-10 | B53: CARNAVAL | C53: segunda-feira
A54: 1997-02-11 | B54: CARNAVAL | C54: terça-feira
A55: 1997-03-27 | B55: QUINTA-FEIRA SANTA | C55: quinta-feira
A56: 1997-03-28 | B56: SEXTA-FEIRA PAIXAO | C56: sexta-feira
A57: 1997-04-21 | B57: TIRADENTES | C57: segunda-feira
A58: 1997-05-01 | B58: DIA DO TRABALHO | C58: quinta-feira
A59: 1997-05-29 | B59: CORPUS CHRISTI | C59: quinta-feira
A60: 1997-09-07 | B60: INDEPENDENCIA | C60: domingo
A61: 1997-10-12 | B61: N.S.APARECIDA | C61: domingo
A62: 1997-11-02 | B62: FINADOS | C62: domingo
A63: 1997-11-15 | B63: PROCLAMACAO DA REP. | C63: sábado
A64: 1997-12-25 | B64: NATAL | C64: quinta-feira
A65: 1998-01-01 | B65: CONFRATERNIZACAO | C65: quinta-feira
A66: 1998-02-23 | B66: CARNAVAL | C66: segunda-feira
A67: 1998-02-24 | B67: CARNAVAL | C67: terça-feira
A68: 1998-04-09 | B68: QUINTA-FEIRA SANTA | C68: quinta-feira
A69: 1998-04-10 | B69: SEXTA-FEIRA PAIXAO | C69: sexta-feira
A70: 1998-04-21 | B70: TIRADENTES | C70: terça-feira
A71: 1998-05-01 | B71: DIA DO TRABALHO | C71: sexta-feira
A72: 1998-06-11 | B72: CORPUS CHRISTI | C72: quinta-feira
A73: 1998-09-07 | B73: INDEPENDENCIA | C73: segunda-feira
A74: 1998-10-12 | B74: N.S.APARECIDA | C74: segunda-feira
A75: 1998-11-02 | B75: FINADOS | C75: segunda-feira
A76: 1998-11-15 | B76: PROCLAMACAO DA REP. | C76: domingo
A77: 1998-12-25 | B77: NATAL | C77: sexta-feira
A78: 1999-01-01 | B78: CONFRATERNIZACAO | C78: sexta-feira
A79: 1999-02-15 | B79: CARNAVAL | C79: segunda-feira
A80: 1999-02-16 | B80: CARNAVAL | C80: terça-feira
A81: 1999-04-01 | B81: QUINTA-FEIRA SANTA | C81: quinta-feira
A82: 1999-04-02 | B82: SEXTA-FEIRA PAIXAO | C82: sexta-feira
A83: 1999-04-21 | B83: TIRADENTES | C83: quarta-feira
A84: 1999-05-01 | B84: DIA DO TRABALHO | C84: sábado
A85: 1999-06-03 | B85: CORPUS CHRISTI | C85: quinta-feira
A86: 1999-09-07 | B86: INDEPENDENCIA | C86: terça-feira
A87: 1999-10-12 | B87: N.S.APARECIDA | C87: terça-feira
A88: 1999-11-02 | B88: FINADOS | C88: terça-feira
A89: 1999-11-15 | B89: PROCLAMACAO DA REP. | C89: segunda-feira
A90: 1999-12-25 | B90: NATAL | C90: sábado
A91: 2000-01-01 | B91: CONFRATERNIZACAO | C91: sábado
A92: 2000-03-06 | B92: SEGUNDA-FEIRA CARNAV | C92: segunda-feira
A93: 2000-03-07 | B93: TERCA-FEIRA CARNAVAL | C93: terça-feira
A94: 2000-04-21 | B94: TIRADENTES | C94: sexta-feira
A95: 2000-05-01 | B95: DIA DO TRABALHO | C95: segunda-feira
A96: 2000-06-22 | B96: CORPUS CHRISTI | C96: quinta-feira
A97: 2000-09-07 | B97: INDEPENDENCIA | C97: quinta-feira
A98: 2000-10-12 | B98: N.S.APARECIDA | C98: quinta-feira
A99: 2000-11-02 | B99: FINADOS | C99: quinta-feira
A100: 2000-11-15 | B100: PROCLAMACAO DA REP. | C100: quarta-feira
A101: 2000-12-25 | B101: NATAL | C101: segunda-feira
A102: 2001-01-01 | B102: CONFRATERNIZACAO | C102: segunda-feira
A103: 2001-02-26 | B103: SEGUNDA-FEIRA CARNAV | C103: segunda-feira
A104: 2001-02-27 | B104: TERCA-FEIRA CARNAVAL | C104: terça-feira
A105: 2001-04-13 | B105: SEXTA-FEIRA PAIXAO | C105: sexta-feira
A106: 2001-04-21 | B106: TIRADENTES | C106: sábado
A107: 2001-05-01 | B107: DIA DO TRABALHO | C107: terça-feira
A108: 2001-06-14 | B108: CORPUS CHRISTI | C108: quinta-feira
A109: 2001-09-07 | B109: INDEPENDENCIA | C109: sexta-feira
A110: 2001-10-12 | B110: N.S.APARECIDA | C110: sexta-feira
A111: 2001-11-02 | B111: FINADOS | C111: sexta-feira
A112: 2001-11-15 | B112: PROCLAMACAO DA REP. | C112: quinta-feira
A113: 2001-12-25 | B113: NATAL | C113: terça-feira
A114: 2002-01-01 | B114: CONFRATERNIZACAO | C114: terça-feira
A115: 2002-02-11 | B115: SEGUNDA-FEIRA CARNAV | C115: segunda-feira
A116: 2002-02-12 | B116: TERCA-FEIRA CARNAVAL | C116: terça-feira
A117: 2002-03-29 | B117: SEXTA-FEIRA PAIXAO | C117: sexta-feira
A118: 2002-04-21 | B118: TIRADENTES | C118: domingo
A119: 2002-05-01 | B119: DIA DO TRABALHO | C119: quarta-feira
A120: 2002-05-30 | B120: CORPUS CHRISTI | C120: quinta-feira
A121: 2002-09-07 | B121: INDEPENDENCIA | C121: sábado
A122: 2002-10-12 | B122: N.S.APARECIDA | C122: sábado
A123: 2002-11-02 | B123: FINADOS | C123: sábado
A124: 2002-11-15 | B124: PROCLAMACAO DA REP. | C124: sexta-feira
A125: 2002-12-25 | B125: NATAL | C125: quarta-feira
A126: 2003-01-01 | B126: CONFRATERNIZACAO | C126: quarta-feira
A127: 2003-03-03 | B127: SEGUNDA-FEIRA CARNAV | C127: segunda-feira
A128: 2003-03-04 | B128: TERCA-FEIRA CARNAVAL | C128: terça-feira
A129: 2003-04-18 | B129: SEXTA-FEIRA PAIXAO | C129: sexta-feira
A130: 2003-04-21 | B130: TIRADENTES | C130: segunda-feira
A131: 2003-05-01 | B131: DIA DO TRABALHO | C131: quinta-feira
A132: 2003-06-19 | B132: CORPUS CHRISTI | C132: quinta-feira
A133: 2003-09-07 | B133: INDEPENDENCIA | C133: domingo
A134: 2003-10-12 | B134: N.S.APARECIDA | C134: domingo
A135: 2003-11-02 | B135: FINADOS | C135: domingo
A136: 2003-11-15 | B136: PROCLAMACAO DA REP. | C136: sábado
A137: 2003-12-25 | B137: NATAL | C137: quinta-feira
A138: 2004-01-01 | B138: CONFRATERNIZACAO | C138: quinta-feira
A139: 2004-02-23 | B139: SEGUNDA-FEIRA CARNAV | C139: segunda-feira
A140: 2004-02-24 | B140: TERCA-FEIRA CARNAVAL | C140: terça-feira
A141: 2004-04-09 | B141: SEXTA-FEIRA PAIXAO | C141: sexta-feira
A142: 2004-04-21 | B142: TIRADENTES | C142: quarta-feira
A143: 2004-05-01 | B143: DIA DO TRABALHO | C143: sábado
A144: 2004-06-10 | B144: CORPUS CHRISTI | C144: quinta-feira
A145: 2004-09-07 | B145: INDEPENDENCIA | C145: terça-feira
A146: 2004-10-12 | B146: N.S.APARECIDA | C146: terça-feira
A147: 2004-11-02 | B147: FINADOS | C147: terça-feira
A148: 2004-11-15 | B148: PROCLAMACAO DA REP. | C148: segunda-feira
A149: 2004-12-25 | B149: NATAL | C149: sábado
A150: 2005-01-01 | B150: CONFRATERNIZACAO | C150: sábado
A151: 2005-02-07 | B151: SEGUNDA-FEIRA CARNAV | C151: segunda-feira
A152: 2005-02-08 | B152: TERCA-FEIRA CARNAVAL | C152: terça-feira
A153: 2005-03-25 | B153: SEXTA-FEIRA PAIXAO | C153: sexta-feira
A154: 2005-04-21 | B154: TIRADENTES | C154: quinta-feira
A155: 2005-05-01 | B155: DIA DO TRABALHO | C155: domingo
A156: 2005-05-26 | B156: CORPUS CHRISTI | C156: quinta-feira
A157: 2005-09-07 | B157: INDEPENDENCIA | C157: quarta-feira
A158: 2005-10-12 | B158: N.S.APARECIDA | C158: quarta-feira
A159: 2005-11-02 | B159: FINADOS | C159: quarta-feira
A160: 2005-11-15 | B160: PROCLAMACAO DA REP. | C160: terça-feira
A161: 2005-12-25 | B161: NATAL | C161: domingo
A162: 2006-01-01 | B162: CONFRATERNIZACAO | C162: domingo
A163: 2006-02-27 | B163: SEGUNDA-FEIRA CARNAV | C163: segunda-feira
A164: 2006-02-28 | B164: TERCA-FEIRA CARNAVAL | C164: terça-feira
A165: 2006-04-14 | B165: SEXTA-FEIRA PAIXAO | C165: sexta-feira
A166: 2006-04-21 | B166: TIRADENTES | C166: sexta-feira
A167: 2006-05-01 | B167: DIA DO TRABALHO | C167: segunda-feira
A168: 2006-06-15 | B168: CORPUS CHRISTI | C168: quinta-feira
A169: 2006-09-07 | B169: INDEPENDENCIA | C169: quinta-feira
A170: 2006-10-12 | B170: N.S.APARECIDA | C170: quinta-feira
A171: 2006-11-02 | B171: FINADOS | C171: quinta-feira
A172: 2006-11-15 | B172: PROCLAMACAO DA REP. | C172: quarta-feira
A173: 2006-12-25 | B173: NATAL | C173: segunda-feira
A174: 2007-01-01 | B174: CONFRATERNIZACAO | C174: segunda-feira
A175: 2007-02-19 | B175: SEGUNDA-FEIRA CARNAV | C175: segunda-feira
A176: 2007-02-20 | B176: TERCA-FEIRA CARNAVAL | C176: terça-feira
A177: 2007-04-06 | B177: SEXTA-FEIRA PAIXAO | C177: sexta-feira
A178: 2007-04-21 | B178: TIRADENTES | C178: sábado
A179: 2007-05-01 | B179: DIA DO TRABALHO | C179: terça-feira
A180: 2007-06-07 | B180: CORPUS CHRISTI | C180: quinta-feira
A181: 2007-09-07 | B181: INDEPENDENCIA | C181: sexta-feira
A182: 2007-10-12 | B182: N.S.APARECIDA | C182: sexta-feira
A183: 2007-11-02 | B183: FINADOS | C183: sexta-feira
A184: 2007-11-15 | B184: PROCLAMACAO DA REP. | C184: quinta-feira
A185: 2007-12-25 | B185: NATAL | C185: terça-feira
A186: 2008-01-01 | B186: CONFRATERNIZACAO | C186: terça-feira
A187: 2008-02-04 | B187: SEGUNDA-FEIRA CARNAV | C187: segunda-feira
A188: 2008-02-05 | B188: TERCA-FEIRA CARNAVAL | C188: terça-feira
A189: 2008-03-21 | B189: SEXTA-FEIRA PAIXAO | C189: sexta-feira
A190: 2008-04-21 | B190: TIRADENTES | C190: segunda-feira
A191: 2008-05-01 | B191: DIA DO TRABALHO | C191: quinta-feira
A192: 2008-05-22 | B192: CORPUS CHRISTI | C192: quinta-feira
A193: 2008-09-07 | B193: INDEPENDENCIA | C193: domingo
A194: 2008-10-12 | B194: N.S.APARECIDA | C194: domingo
A195: 2008-11-02 | B195: FINADOS | C195: domingo
A196: 2008-11-15 | B196: PROCLAMACAO DA REP. | C196: sábado
A197: 2008-12-25 | B197: NATAL | C197: quinta-feira
A198: 2009-01-01 | B198: CONFRATERNIZACAO | C198: quinta-feira
A199: 2009-02-23 | B199: SEGUNDA-FEIRA CARNAV | C199: segunda-feira
A200: 2009-02-24 | B200: TERCA-FEIRA CARNAVAL | C200: terça-feira
... 837 more rows
